Workbook

Sheet Main
H1: log (V) = log (K) + b* log(R) | K1: Expected b | L1: var( R) | M1: Cov(R,D)
H2: b = | I2: =IF(Regression!B3=0,0,Regression!V2) -> 0.2557970562 | K2: =1/3+1/3*(M2)/L2 -> 0.2557970562 | L2: =_xlfn.VAR.S(Regression!H10:H1000) -> 0.3628764579 | M2: =_xlfn.COVARIANCE.S(Regression!H10:H1000,Regression!G10:G1000) -> -0.0844082688
H3: log (K)= | I3: =IF(Regression!B3=0,0,Regression!V3) -> 0.2275655194
H4: R^2 | I4: =IF(Regression!B3=0,0,Regression!V4) -> 0.3765205638
H6: log (V) = a * log(D) + b* log (R)
H7: where D= |dX*d2Y-d2X*dY|
H8: b = | I8: =IF(Regression!B3=0,0,Regression!V8) -> 0.3333333333
H9: a= | I9: =IF(Regression!B3=0,0,Regression!V9) -> 0.3333333333
H10: R^2 | I10: =IF(Regression!B3=0,0,Regression!V10) -> 1
H12: log (A) = log (K)+ b* log(C) | K12: Expected b | L12: var( C) | M12: Cov(C,D)
H13: b = | I13: =IF(Regression!B3=0,0,Regression!V13) -> 0.7442029438 | K13: =2/3+1/3*(M13)/L13 -> 0.7442029438 | L13: =_xlfn.VAR.S(Regression!M10:M1000) -> 0.3628764579 | M13: =_xlfn.COVARIANCE.S(Regression!M10:M1000,Regression!L10:L1000) -> 0.0844082688
H14: log (K)= | I14: =IF(Regression!B3=0,0,Regression!V14) -> 0.2275655194
H15: R^2 | I15: =IF(Regression!B3=0,0,Regression!V15) -> 0.8363771635
H17: log (A) = a * log(D) + b* log (C)
H18: b = | I18: =IF(Regression!B3=0,0,Regression!V18) -> 0.6666666667
H19: a= | I19: =IF(Regression!B3=0,0,Regression!V19) -> 0.3333333333
H20: R^2 | I20: =IF(Regression!B3=0,0,Regression!V20) -> 1

Sheet Regression
A1: 1 | B1: Input Variable | U1: log (V) = log (K) + b* log(R)
A2: Time | B2: qi.x | C2: qi.y | D2: R | E2: V | F2: D= |dX*d2Y-d2X*dY| | G2: log D | H2: log R | I2: log V | J2: C | K2: A | L2: log D | M2: log C | N2: log A | O2: X.dot | P2: Y.dot | Q2: X.2dot | R2: Y.2dot | U2: b = | V2: =U23 -> 0.2557970562 | Y2: =C2 -> qi.y | Z2: =B2 -> qi.x | AA2: ox | AB2: oy
A3: 0 | B3: 538.344721 | C3: -12.48902354 | U3: log (K)= | V3: =V23 -> 0.2275655194 | Y3: =IF($A$1=0,0,C3) -> -12.48902354 | Z3: =IF($A$1=0,0,B3) -> 538.344721 | AA3: =IF($A$1=0,0,B3) -> 538.344721 | AB3: =IF($A$1=0,0,C3) -> -12.48902354
A4: 0.0083 | B4: 545.1563933 | C4: -11.97809855 | O4: =(B4-B3) -> 6.811672303 | P4: =(C4-C3) -> 0.5109249925 | U4: R^2 | V4: =U25 -> 0.3765205638 | Y4: =IF($A$1=0,0,C4) -> -11.97809855 | Z4: =IF($A$1=0,0,B4) -> 545.1563933 | AA4: =IF($A$1=0,0,B4) -> 545.1563933 | AB4: =IF($A$1=0,0,C4) -> -11.97809855
A5: 0.0167 | B5: 546.822398 | C5: -11.97813286 | D5: =((O5^2+P5^2)^(3/2))/F5 -> 5.430953379 | E5: =SQRT(O5^2+P5^2) -> 1.666004711 | F5: =ABS(O5*R5-Q5*P5) -> 0.8514371601 | G5: =LOG10(F5) -> -0.06984739941 | H5: =LOG10(D5) -> 0.7348760747 | I5: =LOG10(E5) -> 0.2216762251 | J5: =1/D5 -> 0.1841297338 | K5: =E5/D5 -> 0.3067610039 | L5: =LOG(F5) -> -0.06984739941 | M5: =LOG(J5) -> -0.7348760747 | N5: =LOG(K5) -> -0.5131998496 | O5: =(B5-B4) -> 1.66600471 | P5: =(C5-C4) -> -3.431108028e-05 | Q5: =(O5-O4) -> -5.145667592 | R5: =(P5-P4) -> -0.5109593036 | Y5: -11.97813286 | Z5: 546.822398 | AA5: 546.822398 | AB5: -11.97813286
A6: 0.025 | B6: 550.9174541 | C6: -11.63761341 | D6: =((O6^2+P6^2)^(3/2))/F6 -> 122.2764366 | E6: =SQRT(O6^2+P6^2) -> 4.109189385 | F6: =ABS(O6*R6-Q6*P6) -> 0.5674475157 | G6: =LOG10(F6) -> -0.246074301 | H6: =LOG10(D6) -> 2.087342774 | I6: 0.6137561576 | J6: 0.008178190567 | K6: 0.03360573387 | L6: -0.246074301 | M6: =LOG(J6) -> -2.087342774 | N6: -1.473586616 | O6: 4.095056032 | P6: 0.3405194513 | Q6: =(O6-O5) -> 2.429051322 | R6: 0.3405537624 | U6: log (V) = a * log(D) + b* log (R) | Y6: -11.63761341 | Z6: 550.9174541 | AA6: 550.9174541 | AB6: -11.63761341
A7: 0.0333 | B7: 553.7728366 | C7: -11.35396441 | D7: 124.8432039 | E7: 2.869436547 | F7: 0.1892452426 | G7: -0.7229750294 | H7: 2.096364906 | I7: 0.4577966254 | J7: 0.008010047552 | K7: 0.02298432319 | L7: -0.7229750294 | M7: -2.096364906 | N7: -1.63856828 | O7: 2.855382521 | P7: 0.283648996 | Q7: -1.239673511 | R7: -0.05687045532 | U7: where D= |dX*d2Y-d2X*dY| | Y7: -11.35396441 | Z7: 553.7728366 | AA7: 553.7728366 | AB7: -11.35396441
A8: 0.0417 | B8: 556.6904742 | C8: -10.30917339 | D8: 13.80717102 | E8: 3.099063969 | F8: 2.155693032 | G8: 0.333586918 | H8: 1.140104704 | I8: 0.4912305408 | J8: 0.07242613265 | K8: 0.2244532181 | L8: 0.333586918 | M8: -1.140104704 | N8: -0.6488741635 | O8: 2.917637608 | P8: 1.044791018 | Q8: 0.06225508669 | R8: 0.7611420218 | U8: b = | V8: =U29 -> 0.3333333333 | Y8: -10.30917339 | Z8: 556.6904742 | AA8: 556.6904742 | AB8: -10.30917339
A9: 0.05 | B9: 559.5480323 | C9: -8.363061396 | D9: 15.34826761 | E9: 3.457309659 | F9: 2.692498534 | G9: 0.4301554755 | H9: 1.186059363 | I9: 0.5387382795 | J9: 0.06515393303 | K9: 0.225257322 | L9: 0.4301554755 | M9: -1.186059363 | N9: -0.6473210834 | O9: 2.857558079 | P9: 1.946111996 | Q9: -0.06007952881 | R9: 0.9013209779 | U9: a= | V9: =V29 -> 0.3333333333 | Y9: -8.363061396 | Z9: 559.5480323 | AA9: 559.5480323 | AB9: -8.363061396
A10: 0.0583 | B10: 561.7386399 | C10: -5.529581731 | D10: 11.98373511 | E10: 3.5815316 | F10: 3.833665011 | G10: 0.5836141611 | H10: 1.078592201 | I10: 0.5540687873 | J10: 0.08344643727 | K10: 0.298866052 | L10: 0.5836141611 | M10: -1.078592201 | N10: -0.5245234134 | O10: 2.190607584 | P10: 2.833479665 | Q10: -0.6669504949 | R10: 0.887367669 | U10: R^2 | V10: =U31 -> 1 | Y10: -5.529581731 | Z10: 561.7386399 | AA10: 561.7386399 | AB10: -5.529581731
A11: 0.0667 | B11: 565.0191597 | C11: 3.23332371 | D11: 82.74014954 | E11: 9.356832924 | F11: 9.900800799 | G11: 0.9956703227 | H11: 1.917716302 | I11: 0.9711288747 | J11: 0.01208603085 | K11: 0.1130869714 | L11: 0.9956703227 | M11: -1.917716302 | N11: -0.9465874268 | O11: 3.280519864 | P11: 8.762905442 | Q11: 1.089912279 | R11: 5.929425777 | Y11: 3.23332371 | Z11: 565.0191597 | AA11: 565.0191597 | AB11: 3.23332371
A12: 0.075 | B12: 567.1061874 | C12: 10.9350061 | D12: 72.8188649 | E12: 7.979448359 | F12: 6.977096029 | G12: 0.8436747004 | H12: 1.862243905 | I12: 0.9019728684 | J12: 0.01373270514 | K12: 0.1095794115 | L12: 0.8436747004 | M12: -1.862243905 | N12: -0.9602710364 | O12: 2.08702766 | P12: 7.701682391 | Q12: -1.193492204 | R12: -1.06122305 | U12: log (A) = log (K)+ b* log(C) | Y12: 10.9350061 | Z12: 567.1061874 | AA12: 567.1061874 | AB12: 10.9350061
A13: 0.0833 | B13: 569.4908075 | C13: 23.25925146 | D13: 268.9149872 | E13: 12.55282584 | F13: 7.35545433 | G13: 0.8666095033 | H13: 2.429615007 | I13: 1.098741503 | J13: 0.003718647333 | K13: 0.04667953234 | L13: 0.8666095033 | M13: -2.429615007 | N13: -1.330873504 | O13: 2.384620098 | P13: 12.32424536 | Q13: 0.297592438 | R13: 4.622562965 | U13: b = | V13: =U35 -> 0.7442029438 | Y13: 23.25925146 | Z13: 569.4908075 | AA13: 569.4908075 | AB13: 23.25925146
A14: 0.0917 | B14: 570.5755123 | C14: 38.77042178 | D14: 159.1586674 | E14: 15.54905107 | F14: 23.62008063 | G14: 1.373281376 | H14: 2.201830294 | I14: 1.19170389 | J14: 0.00628303828 | K14: 0.0976952831 | L14: 1.373281376 | M14: -2.201830294 | N14: -1.010126404 | O14: 1.084704782 | P14: 15.51117032 | Q14: -1.299915317 | R14: 3.186924967 | U14: log (K)= | V14: =V35 -> 0.2275655194 | Y14: 38.77042178 | Z14: 570.5755123 | AA14: 570.5755123 | AB14: 38.77042178
A15: 0.1 | B15: 571.6580932 | C15: 55.2178827 | D15: 4270.974178 | E15: 16.48305045 | F15: 1.048541969 | G15: 0.02058581818 | H15: 3.630526946 | I15: 1.217037588 | J15: 0.00023413862 | K15: 0.003859318686 | L15: 0.02058581818 | M15: -3.630526946 | N15: -2.413489358 | O15: 1.082580952 | P15: 16.44746092 | Q15: -0.002123829485 | R15: 0.9362905973 | U15: R^2 | V15: =U37 -> 0.8363771635 | Y15: 55.2178827 | Z15: 571.6580932 | AA15: 571.6580932 | AB15: 55.2178827
A16: 0.1083 | B16: 571.9719111 | C16: 68.03952641 | D16: 241.9672495 | E16: 12.82548358 | F16: 8.718959475 | G16: 0.9404646591 | H16: 2.383756588 | I16: 1.108073749 | J16: 0.004132790706 | K16: 0.05300503934 | L16: 0.9404646591 | M16: -2.383756588 | N16: -1.275682839 | O16: 0.3138179081 | P16: 12.82164371 | Q16: -0.7687630441 | R16: -3.625817213 | Y16: 68.03952641 | Z16: 571.9719111 | AA16: 571.9719111 | AB16: 68.03952641
A17: 0.1167 | B17: 572.0272833 | C17: 80.29775518 | D17: 587.2151996 | E17: 12.25835383 | F17: 3.136889137 | G17: 0.4964991702 | H17: 2.768797288 | I17: 1.088432153 | J17: 0.001702953194 | K17: 0.02087540282 | L17: 0.4964991702 | M17: -2.768797288 | N17: -1.680365136 | O17: 0.05537219629 | P17: 12.25822877 | Q17: -0.2584457118 | R17: -0.5634149377 | U17: log (A) = a * log(D) + b* log (C) | Y17: 80.29775518 | Z17: 572.0272833 | AA17: 572.0272833 | AB17: 80.29775518
A18: 0.125 | B18: 571.4053695 | C18: 91.49265019 | D18: 170.9852036 | E18: 11.2121564 | F18: 8.243448176 | G18: 0.916108912 | H18: 2.23295853 | I18: 1.049689147 | J18: 0.005848459277 | K18: 0.06557384013 | L18: 0.916108912 | M18: -2.23295853 | N18: -1.183269382 | O18: -0.6219138503 | P18: 11.19489501 | Q18: -0.6772860466 | R18: -1.063333757 | U18: b = | V18: =U41 -> 0.6666666667 | Y18: 91.49265019 | Z18: 571.4053695 | AA18: 571.4053695 | AB18: 91.49265019
A19: 0.1333 | B19: 571.4699293 | C19: 99.47835565 | D19: 89.5229154 | E19: 7.98596642 | F19: 5.689160973 | G19: 0.7550482222 | H19: 1.951934217 | I19: 0.9023274797 | J19: 0.01117032433 | K19: 0.089205835 | L19: 0.7550482222 | M19: -1.951934217 | N19: -1.049606737 | O19: 0.06455979641 | P19: 7.98570546 | Q19: 0.6864736467 | R19: -3.209189553 | U19: a= | V19: =V41 -> 0.3333333333 | Y19: 99.47835565 | Z19: 571.4699293 | AA19: 571.4699293 | AB19: 99.47835565
A20: 0.1417 | B20: 571.2025369 | C20: 106.7062631 | D20: 145.4219569 | E20: 7.23285177 | F20: 2.60194858 | G20: 0.4152987098 | H20: 2.162629985 | I20: 0.8593095648 | J20: 0.006876540663 | K20: 0.04973699931 | L20: 0.4152987098 | M20: -2.162629985 | N20: -1.30332042 | O20: -0.2673923246 | P20: 7.227907448 | Q20: -0.3319521211 | R20: -0.7577980119 | U20: R^2 | V20: =U43 -> 1 | Y20: 106.7062631 | Z20: 571.2025369 | AA20: 571.2025369 | AB20: 106.7062631
A21: 0.15 | B21: 570.3849053 | C21: 112.9448676 | D21: 58.72542806 | E21: 6.291955739 | F21: 4.241610502 | G21: 0.6275307857 | H21: 1.768826191 | I21: 0.7987856589 | J21: 0.01702839865 | K21: 0.1071419306 | L21: 0.6275307857 | M21: -1.768826191 | N21: -0.9700405322 | O21: -0.8176315889 | P21: 6.23860446 | Q21: -0.5502392642 | R21: -0.9893029879 | Y21: 112.9448676 | Z21: 570.3849053 | AA21: 570.3849053 | AB21: 112.9448676
A22: 0.1583 | B22: 568.9380655 | C22: 117.9341144 | D22: 28.33826905 | E22: 5.194798274 | F22: 4.946895582 | G22: 0.6943327434 | H22: 1.452373319 | I22: 0.7155686876 | J22: 0.03528797042 | K22: 0.1833138878 | L22: 0.6943327434 | M22: -1.452373319 | N22: -0.7368046317 | O22: -1.446839823 | P22: 4.989246801 | Q22: -0.6292082338 | R22: -1.249357659 | U22: R | V22: K | Y22: 117.9341144 | Z22: 568.9380655 | AA22: 568.9380655 | AB22: 117.9341144
A23: 0.1667 | B23: 566.4295346 | C23: 122.5101335 | D23: 24.1078292 | E23: 5.218493878 | F23: 5.894913393 | G23: 0.7704774289 | H23: 1.382158106 | I23: 0.7175451783 | J23: 0.04148030051 | K23: 0.2164646942 | L23: 0.7704774289 | M23: -1.382158106 | N23: -0.6646129277 | O23: -2.508530957 | P23: 4.576019098 | Q23: -1.061691135 | R23: -0.4132277024 | U23: =LINEST(I10:I1000,H10:H1000,,TRUE) -> 0.2557970562 | V23: 0.2275655194 | Y23: 122.5101335 | Z23: 566.4295346 | AA23: 566.4295346 | AB23: 122.5101335
A24: 0.175 | B24: 564.0220981 | C24: 126.1982665 | D24: 48.41413791 | E24: 4.404324626 | F24: 1.764679181 | G24: 0.246665762 | H24: 1.684972203 | I24: 0.6438793217 | J24: 0.02065512355 | K24: 0.09097186929 | L24: 0.246665762 | M24: -1.684972203 | N24: -1.041092881 | O24: -2.407436427 | P24: 3.688133032 | Q24: 0.1010945308 | R24: -0.8878860663 | U24: 0.01046680452 | V24: 0.02148914452 | Y24: 126.1982665 | Z24: 564.0220981 | AA24: 564.0220981 | AB24: 126.1982665
A25: 0.1833 | B25: 561.9591273 | C25: 129.4523206 | D25: 253.7292156 | E25: 3.852884198 | F25: 0.2254173767 | G25: -0.6470126087 | H25: 2.404370477 | I25: 0.5857859561 | J25: 0.00394120952 | K25: 0.01518502388 | L25: -0.6470126087 | M25: -2.404370477 | N25: -1.818584521 | O25: -2.06297085 | P25: 3.254054074 | Q25: 0.344465577 | R25: -0.4340789582 | U25: 0.3765205638 | V25: 0.1983860395 | Y25: 129.4523206 | Z25: 561.9591273 | AA25: 561.9591273 | AB25: 129.4523206
A26: 0.1917 | B26: 560.0426116 | C26: 131.9319952 | D26: 27.46008729 | E26: 3.133978122 | F26: 1.120949294 | G26: 0.04958596783 | H26: 1.438701913 | I26: 0.4960959604 | J26: 0.03641649021 | K26: 0.1141284836 | L26: 0.04958596783 | M26: -1.438701913 | N26: -0.9426059531 | O26: -1.916515726 | P26: 2.479674645 | Q26: 0.1464551242 | R26: -0.7743794285 | U26: 597.2592132 | V26: 989 | Y26: 131.9319952 | Z26: 560.0426116 | AA26: 560.0426116 | AB26: 131.9319952
A27: 0.2 | B27: 558.6209423 | C27: 134.341776 | D27: 20.03685939 | E27: 2.797889678 | F27: 1.093105572 | G27: 0.03866210796 | H27: 1.30182965 | I27: 0.4468305861 | J27: 0.04990802104 | K27: 0.1396371369 | L27: 0.03866210796 | M27: -1.30182965 | N27: -0.8549990643 | O27: -1.421669225 | P27: 2.409780751 | Q27: 0.4948465001 | R27: -0.06989389452 | Y27: 134.341776 | Z27: 558.6209423 | AA27: 558.6209423 | AB27: 134.341776
A28: 0.2083 | B28: 556.744185 | C28: 136.4697079 | D28: 15.25433651 | E28: 2.837307239 | F28: 1.497358442 | G28: 0.1753257756 | H28: 1.183393323 | I28: 0.4529063661 | J28: 0.06555512913 | K28: 0.1860000424 | L28: 0.1753257756 | M28: -1.183393323 | N28: -0.7304869567 | O28: -1.876757355 | P28: 2.127931907 | Q28: -0.4550881297 | R28: -0.281848844 | U28: R | V28: D | W28: I | Y28: 136.4697079 | Z28: 556.744185 | AA28: 556.744185 | AB28: 136.4697079
A29: 0.2167 | B29: 553.211764 | C29: 139.1466179 | D29: 34.92570773 | E29: 4.432137727 | F29: 2.492840701 | G29: 0.3966945269 | H29: 1.543145215 | I29: 0.6466132474 | J29: 0.02863220433 | K29: 0.126901873 | L29: 0.3966945269 | M29: -1.543145215 | N29: -0.896531968 | O29: -3.53242094 | P29: 2.676909997 | Q29: -1.655663585 | R29: 0.5489780899 | U29: =LINEST(I10:I1000,G10:H1000,,TRUE) -> 0.3333333333 | V29: 0.3333333333 | W29: -7.771561172e-16 | Y29: 139.1466179 | Z29: 553.211764 | AA29: 553.211764 | AB29: 139.1466179
A30: 0.225 | B30: 549.973449 | C30: 141.2454467 | D30: 45.80034843 | E30: 3.85898519 | F30: 1.254730785 | G30: 0.09855055346 | H30: 1.660868782 | I30: 0.5864731118 | J30: 0.02183389503 | K30: 0.08425667755 | L30: 0.09855055346 | M30: -1.660868782 | N30: -1.07439567 | O30: -3.238315008 | P30: 2.098828865 | Q30: 0.2941059321 | R30: -0.5780811316 | U30: 1.245196118e-17 | V30: 1.227376925e-17 | W30: 2.625671097e-17 | Y30: 141.2454467 | Z30: 549.973449 | AA30: 549.973449 | AB30: 141.2454467
A31: 0.2333 | B31: 544.6122448 | C31: 143.0007672 | D31: 32.24247348 | E31: 5.641246396 | F31: 5.567969606 | G31: 0.7456968559 | H31: 1.508428351 | I31: 0.7513750691 | J31: 0.03101499023 | K31: 0.1749632019 | L31: 0.7456968559 | M31: -1.508428351 | N31: -0.7570532822 | O31: -5.361204245 | P31: 1.755320468 | Q31: -2.122889237 | R31: -0.3435083974 | U31: 1 | V31: 2.297251068e-16 | Y31: 143.0007672 | Z31: 544.6122448 | AA31: 544.6122448 | AB31: 143.0007672
A32: 0.2417 | B32: 538.9723502 | C32: 145.1150673 | D32: 152.2343215 | E32: 6.023178246 | F32: 1.435372333 | G32: 0.156964571 | H32: 2.182512576 | I32: 0.7798257156 | J32: 0.006568820949 | K32: 0.03956517944 | L32: 0.156964571 | M32: -2.182512576 | N32: -1.40268686 | O32: -5.639894608 | P32: 2.114300119 | Q32: -0.2786903633 | R32: 0.3589796516 | U32: 5.914927864e+32 | V32: 988 | Y32: 145.1150673 | Z32: 538.9723502 | AA32: 538.9723502 | AB32: 145.1150673
A33: 0.25 | B33: 531.5294412 | C33: 146.5673509 | D33: 57.79146911 | E33: 7.583272536 | F33: 7.545816827 | G33: 0.8777062586 | H33: 1.761863735 | I33: 0.8798566644 | J33: 0.01730359196 | K33: 0.1312178537 | L33: 0.8777062586 | M33: -1.761863735 | N33: -0.8820070703 | O33: -7.442909017 | P33: 1.452283626 | Q33: -1.803014408 | R33: -0.6620164928 | Y33: 146.5673509 | Z33: 531.5294412 | AA33: 531.5294412 | AB33: 146.5673509
A34: 0.2583 | B34: 523.723418 | C34: 147.918099 | D34: 387.4900243 | E34: 7.922027347 | F34: 1.28306449 | G34: 0.1082484855 | H34: 2.588260526 | I34: 0.8988363373 | J34: 0.002580711599 | K34: 0.02044446786 | L34: 0.1082484855 | M34: -2.588260526 | N34: -1.689424189 | O34: -7.806023118 | P34: 1.350748081 | Q34: -0.3631141012 | R34: -0.1015355454 | U34: C | V34: K | Y34: 147.918099 | Z34: 523.723418 | AA34: 523.723418 | AB34: 147.918099
A35: 0.2667 | B35: 512.5260823 | C35: 148.6804569 | D35: 154.1017981 | E35: 11.2232579 | F35: 9.173796922 | G35: 0.962549122 | H35: 2.187807706 | I35: 1.050118943 | J35: 0.006489216947 | K35: 0.07283015538 | L35: 0.962549122 | M35: -2.187807706 | N35: -1.137688764 | O35: -11.19733577 | P35: 0.7623578357 | Q35: -3.391312657 | R35: -0.5883902454 | U35: =LINEST(N10:N1000,M10:M1000,,TRUE) -> 0.7442029438 | V35: 0.2275655194 | Y35: 148.6804569 | Z35: 512.5260823 | AA35: 512.5260823 | AB35: 148.6804569
A36: 0.275 | B36: 503.7412778 | C36: 149.545617 | D36: 230.0202323 | E36: 8.827303767 | F36: 2.990323527 | G36: 0.4757181778 | H36: 2.361766038 | I36: 0.9458280719 | J36: 0.004347443657 | K36: 0.03837620577 | L36: 0.4757181778 | M36: -2.361766038 | N36: -1.415937966 | O36: -8.784804483 | P36: 0.865160093 | Q36: 2.412531292 | R36: 0.1028022573 | U36: 0.01046680452 | V36: 0.02148914452 | Y36: 149.545617 | Z36: 503.7412778 | AA36: 503.7412778 | AB36: 149.545617
A37: 0.2833 | B37: 495.2941638 | C37: 150.2483424 | D37: 536.659125 | E37: 8.476293888 | F37: 1.134800451 | G37: 0.05491949991 | H37: 2.729698518 | I37: 0.928206006 | J37: 0.001863380223 | K37: 0.0157945584 | L37: 0.05491949991 | M37: -2.729698518 | N37: -1.801492512 | O37: -8.447114007 | P37: 0.7027254277 | Q37: 0.3376904761 | R37: -0.1624346652 | U37: 0.8363771635 | V37: 0.1983860395 | Y37: 150.2483424 | Z37: 495.2941638 | AA37: 495.2941638 | AB37: 150.2483424
A38: 0.2917 | B38: 488.4276861 | C38: 150.9306022 | D38: 350.312453 | E38: 6.900289478 | F38: 0.9378780145 | G38: -0.02785364465 | H38: 2.544455576 | I38: 0.8388673104 | J38: 0.002854594495 | K38: 0.01969752836 | L38: -0.02785364465 | M38: -2.544455576 | N38: -1.705588266 | O38: -6.86647773 | P38: 0.6822598238 | Q38: 1.580636277 | R38: -0.02046560391 | U38: 5055.388552 | V38: 989 | Y38: 150.9306022 | Z38: 488.4276861 | AA38: 488.4276861 | AB38: 150.9306022
A39: 0.3 | B39: 482.5311584 | C39: 151.5512911 | D39: 872.1712706 | E39: 5.929105581 | F39: 0.2389823212 | G39: -0.621634225 | H39: 2.940601777 | I39: 0.772989184 | J39: 0.001146563793 | K39: 0.006798097782 | L39: -0.621634225 | M39: -2.940601777 | N39: -2.167612593 | O39: -5.89652765 | P39: 0.6206888604 | Q39: 0.9699500798 | R39: -0.06157096346 | Y39: 151.5512911 | Z39: 482.5311584 | AA39: 482.5311584 | AB39: 151.5512911
A40: 0.3083 | B40: 477.8152802 | C40: 152.1440142 | D40: 189.066551 | E40: 4.752980911 | F40: 0.5679152208 | G40: -0.2457164916 | H40: 2.276614702 | I40: 0.6769660701 | J40: 0.005289142868 | K40: 0.02513919509 | L40: -0.2457164916 | M40: -2.276614702 | N40: -1.599648632 | O40: -4.715878163 | P40: 0.5927231196 | Q40: 1.180649487 | R40: -0.0279657408 | U40: C | V40: D | W40: I | Y40: 152.1440142 | Z40: 477.8152802 | AA40: 477.8152802 | AB40: 152.1440142
A41: 0.3167 | B41: 473.8133363 | C41: 152.0395889 | D41: 22.39790225 | E41: 4.003306173 | F41: 2.864501631 | G41: 0.4570490739 | H41: 1.350207345 | I41: 0.6024188063 | J41: 0.04464703833 | K41: 0.1787357641 | L41: 0.4570490739 | M41: -1.350207345 | N41: -0.7477885386 | O41: -4.001943987 | P41: -0.1044252819 | Q41: 0.7139341755 | R41: -0.6971484015 | U41: =LINEST(N10:N1000,L10:M1000,,TRUE) -> 0.6666666667 | V41: 0.3333333333 | W41: 2.664535259e-15 | Y41: 152.0395889 | Z41: 473.8133363 | AA41: 473.8133363 | AB41: 152.0395889
A42: 0.325 | B42: 470.1066022 | C42: 151.3594735 | D42: 22.92513066 | E42: 3.768611732 | F42: 2.334706906 | G42: 0.3682323679 | H42: 1.36031182 | I42: 0.5761813958 | J42: 0.04362025303 | K42: 0.1643877973 | L42: 0.3682323679 | M42: -1.36031182 | N42: -0.7841304237 | O42: -3.706734069 | P42: -0.68011538 | Q42: 0.2952099184 | R42: -0.5756900981 | U42: 2.395733396e-17 | V42: 2.361449612e-17 | W42: 5.051740723e-17 | Y42: 151.3594735 | Z42: 470.1066022 | AA42: 470.1066022 | AB42: 151.3594735
A43: 0.3333 | B43: 464.0665467 | C43: 148.9210774 | D43: 56.05109208 | E43: 6.513681461 | F43: 4.930551172 | G43: 0.6928954705 | H43: 1.748584079 | I43: 0.8138265164 | J43: 0.01784086559 | K43: 0.1162097154 | L43: 0.6928954705 | M43: -1.748584079 | N43: -0.9347575622 | O43: -6.040055523 | P43: -2.438396082 | Q43: -2.333321454 | R43: -1.758280702 | U43: 1 | V43: 4.419866899e-16 | Y43: 148.9210774 | Z43: 464.0665467 | AA43: 464.0665467 | AB43: 148.9210774
A44: 0.3417 | B44: 457.6773671 | C44: 145.7040075 | D44: 95.02969962 | E44: 7.153401633 | F44: 3.85193076 | G44: 0.585678472 | H44: 1.977859357 | I44: 0.8545126095 | J44: 0.010523026 | K44: 0.07527543138 | L44: 0.585678472 | M44: -1.977859357 | N44: -1.123346747 | O44: -6.389179583 | P44: -3.217069967 | Q44: -0.3491240603 | R44: -0.7786738853 | U44: 6.088722923e+32 | V44: 988 | Y44: 145.7040075 | Z44: 457.6773671 | AA44: 457.6773671 | AB44: 145.7040075
A45: 0.35 | B45: 450.7242355 | C45: 142.3072533 | D45: 695.5624945 | E45: 7.738473829 | F45: 0.6662386111 | G45: -0.1763702019 | H45: 2.842336156 | I45: 0.8886553182 | J45: 0.001437685338 | K45: 0.01112549036 | L45: -0.1763702019 | M45: -2.842336156 | N45: -1.953680838 | O45: -6.953131567 | P45: -3.396754129 | Q45: -0.5639519837 | R45: -0.1796841619 | Y45: 142.3072533 | Z45: 450.7242355 | AA45: 450.7242355 | AB45: 142.3072533
A46: 0.3583 | B46: 443.7968927 | C46: 138.2569983 | D46: 111.5668037 | E46: 8.024502782 | F46: 4.631475859 | G46: 0.6657194047 | H46: 2.047534991 | I46: 0.904418132 | J46: 0.00896323966 | K46: 0.07192554159 | L46: 0.6657194047 | M46: -2.047534991 | N46: -1.143116859 | O46: -6.927342845 | P46: -4.050255054 | Q46: 0.02578872146 | R46: -0.6535009253 | U46: Correlation R V D | Y46: 138.2569983 | Z46: 443.7968927 | AA46: 443.7968927 | AB46: 138.2569983
A47: 0.3667 | B47: 436.3535945 | C47: 134.9282844 | D47: 76.477813 | E47: 8.153712249 | F47: 7.08811381 | G47: 0.8505306822 | H47: 1.88353546 | I47: 0.9113553808 | J47: 0.01307568772 | K47: 0.1066153951 | L47: 0.8505306822 | M47: -1.88353546 | N47: -0.9721800794 | O47: -7.443298157 | P47: -3.328713864 | Q47: -0.5159553112 | R47: 0.7215411904 | V47: V | W47: D | Y47: 134.9282844 | Z47: 436.3535945 | AA47: 436.3535945 | AB47: 134.9282844
A48: 0.375 | B48: 430.7436258 | C48: 131.9548381 | D48: 74.01355578 | E48: 6.349262321 | F48: 3.458267171 | G48: 0.538858542 | H48: 1.869311269 | I48: 0.8027232704 | J48: 0.01351103848 | K48: 0.08578512752 | L48: 0.538858542 | M48: -1.869311269 | N48: -1.066587999 | O48: -5.609968699 | P48: -2.973446353 | Q48: 1.833329457 | R48: 0.355267511 | U48: R | V48: =CORREL(H10:H1000,I10:I1000) -> 0.6136127148 | W48: =CORREL(H10:H1000,G10:G1000) -> -0.2292801175 | Y48: 131.9548381 | Z48: 430.7436258 | AA48: 430.7436258 | AB48: 131.9548381
A49: 0.3833 | B49: 425.9027869 | C49: 129.0062333 | D49: 84.79512067 | E49: 5.668155925 | F49: 2.14760548 | G49: 0.3319545035 | H49: 1.928370863 | I49: 0.7534417887 | J49: 0.0117931314 | K49: 0.0668453076 | L49: 0.3319545035 | M49: -1.928370863 | N49: -1.174929074 | O49: -4.840838936 | P49: -2.948604751 | Q49: 0.7691297631 | R49: 0.02484160181 | U49: V | W49: =CORREL(I10:I1000,G10:G1000) -> 0.6278831914 | Y49: 129.0062333 | Z49: 425.9027869 | AA49: 425.9027869 | AB49: 129.0062333
A50: 0.3917 | B50: 421.9260603 | C50: 126.5168883 | D50: 318.0181273 | E50: 4.691608744 | F50: 0.3247233249 | G50: -0.4884865148 | H50: 2.502451876 | I50: 0.671321787 | J50: 0.00314447484 | K50: 0.01475264565 | L50: -0.4884865148 | M50: -2.502451876 | N50: -1.831130089 | O50: -3.976726559 | P50: -2.489344989 | Q50: 0.8641123769 | R50: 0.4592597614 | Y50: 126.5168883 | Z50: 421.9260603 | AA50: 421.9260603 | AB50: 126.5168883
A51: 0.4 | B51: 418.4903289 | C51: 122.8547853 | D51: 21.06624166 | E51: 5.021478771 | F51: 6.010461657 | G51: 0.778907831 | H51: 1.323587062 | I51: 0.700831631 | J51: 0.04746931209 | K51: 0.2383661429 | L51: 0.778907831 | M51: -1.323587062 | N51: -0.6227554309 | O51: -3.435731413 | P51: -3.662103043 | Q51: 0.5409951463 | R51: -1.172758054 | Y51: 122.8547853 | Z51: 418.4903289 | AA51: 418.4903289 | AB51: 122.8547853
A52: 0.4083 | B52: 415.8528371 | C52: 120.6207092 | D52: 20.82441649 | E52: 3.456509673 | F52: 1.983081161 | G52: 0.2973404887 | H52: 1.318572841 | I52: 0.5386377766 | J52: 0.0480205532 | K52: 0.1659835067 | L52: 0.2973404887 | M52: -1.318572841 | N52: -0.7799350645 | O52: -2.637491791 | P52: -2.234076134 | Q52: 0.7982396221 | R52: 1.428026909 | U52: Correlation C A D | Y52: 120.6207092 | Z52: 415.8528371 | AA52: 415.8528371 | AB52: 120.6207092
A53: 0.4167 | B53: 412.3249176 | C53: 117.8042339 | D53: 202.9861344 | E53: 4.514282764 | F53: 0.4532104377 | G53: -0.3437000966 | H53: 2.307466373 | I53: 0.6545887588 | J53: 0.004926444868 | K53: 0.02223936516 | L53: -0.3437000966 | M53: -2.307466373 | N53: -1.652877614 | O53: -3.527919509 | P53: -2.816475246 | Q53: -0.8904277182 | R53: -0.5823991119 | V53: A | W53: D | Y53: 117.8042339 | Z53: 412.3249176 | AA53: 412.3249176 | AB53: 117.8042339
A54: 0.425 | B54: 410.0960539 | C54: 115.2687975 | D54: 14.42368381 | E54: 3.375836331 | F54: 2.667275986 | G54: 0.4260679549 | H54: 1.159076193 | I54: 0.5283813828 | J54: 0.06933041607 | K54: 0.2340481374 | L54: 0.4260679549 | M54: -1.159076193 | N54: -0.6306948107 | O54: -2.228863696 | P54: -2.535436364 | Q54: 1.299055813 | R54: 0.2810388819 | U54: C | V54: =CORREL(M10:M1000,N10:N1000) -> 0.914536584 | W54: =CORREL(L10:L1000,M10:M1000) -> 0.2292801175 | Y54: 115.2687975 | Z54: 410.0960539 | AA54: 410.0960539 | AB54: 115.2687975
A55: 0.4333 | B55: 406.9998102 | C55: 112.2987225 | D55: 64.18790737 | E55: 4.290462821 | F55: 1.230436517 | G55: 0.09005921156 | H55: 1.807453217 | I55: 0.6325041429 | J55: 0.01557925848 | K55: 0.06684222927 | L55: 0.09005921156 | M55: -1.807453217 | N55: -1.174949074 | O55: -3.096243749 | P55: -2.97007506 | Q55: -0.8673800525 | R55: -0.4346386958 | U55: A | W55: =CORREL(L10:L1000,N10:N1000) -> 0.6034124824 | Y55: 112.2987225 | Z55: 406.9998102 | AA55: 406.9998102 | AB55: 112.2987225
A56: 0.4417 | B56: 404.0438286 | C56: 109.9432474 | D56: 36.32833116 | E56: 3.779694437 | F56: 1.486362113 | G56: 0.1721246267 | H56: 1.560245448 | I56: 0.5774566915 | J56: 0.02752672551 | K56: 0.1040426113 | L56: 0.1721246267 | M56: -1.560245448 | N56: -0.9827887563 | O56: -2.955981579 | P56: -2.3554751 | Q56: 0.1402621699 | R56: 0.6145999605 | Y56: 109.9432474 | Z56: 404.0438286 | AA56: 404.0438286 | AB56: 109.9432474
A57: 0.45 | B57: 400.8418052 | C57: 107.3135445 | D57: 307.8597192 | E57: 4.143463595 | F57: 0.231066887 | G57: -0.6362622866 | H57: 2.488352869 | I57: 0.6173635274 | J57: 0.003248232678 | K57: 0.01345893385 | L57: -0.6362622866 | M57: -2.488352869 | N57: -1.870989341 | O57: -3.20202335 | P57: -2.629702841 | Q57: -0.2460417707 | R57: -0.2742277411 | Y57: 107.3135445 | Z57: 400.8418052 | AA57: 400.8418052 | AB57: 107.3135445
A58: 0.4583 | B58: 397.9341478 | C58: 104.796403 | D58: 137.5048691 | E58: 3.845838483 | F58: 0.4136709709 | G58: -0.3833449544 | H58: 2.138318077 | I58: 0.5849910408 | J58: 0.007272469743 | K58: 0.027968744 | L58: -0.3833449544 | M58: -2.138318077 | N58: -1.553327036 | O58: -2.907657469 | P58: -2.517141569 | Q58: 0.2943658803 | R58: 0.1125612719 | Y58: 104.796403 | Z58: 397.9341478 | AA58: 397.9341478 | AB58: 104.796403
A59: 0.4667 | B59: 394.0388533 | C59: 101.8911286 | D59: 84.5325641 | E59: 4.859417521 | F59: 1.357464882 | G59: 0.1327286031 | H59: 1.927024043 | I59: 0.6865842152 | J59: 0.01182976064 | K59: 0.05748574614 | L59: 0.1327286031 | M59: -1.927024043 | N59: -1.240439827 | O59: -3.895294502 | P59: -2.905274408 | Q59: -0.9876370326 | R59: -0.3881328388 | Y59: 101.8911286 | Z59: 394.0388533 | AA59: 394.0388533 | AB59: 101.8911286
A60: 0.475 | B60: 390.5753535 | C60: 99.22640516 | D60: 262.8678623 | E60: 4.369963579 | F60: 0.3174650781 | G60: -0.4983040412 | H60: 2.419737493 | I60: 0.6404778174 | J60: 0.003804192689 | K60: 0.0166241835 | L60: -0.4983040412 | M60: -2.419737493 | N60: -1.779259676 | O60: -3.463499802 | P60: -2.664723401 | Q60: 0.4317947 | R60: 0.2405510065 | Y60: 99.22640516 | Z60: 390.5753535 | AA60: 390.5753535 | AB60: 99.22640516
A61: 0.4833 | B61: 387.9227558 | C61: 97.51154832 | D61: 27.91219251 | E61: 3.158640299 | F61: 1.129032813 | G61: 0.05270656396 | H61: 1.445793952 | I61: 0.4995001719 | J61: 0.03582663739 | K61: 0.1131634606 | L61: 0.05270656396 | M61: -1.445793952 | N61: -0.9462937799 | O61: -2.652597696 | P61: -1.714856845 | Q61: 0.8109021055 | R61: 0.9498665563 | Y61: 97.51154832 | Z61: 387.9227558 | AA61: 387.9227558 | AB61: 97.51154832
A62: 0.4917 | B62: 385.3472053 | C62: 95.85921023 | D62: 849.9328194 | E62: 3.06001326 | F62: 0.03371206269 | G62: -1.472214674 | H62: 2.929384599 | I62: 0.4857233084 | J62: 0.001176563579 | K62: 0.003600300153 | L62: -1.472214674 | M62: -2.929384599 | N62: -2.443661291 | O62: -2.575550424 | P62: -1.65233809 | Q62: 0.07704727222 | R62: 0.06251875475 | Y62: 95.85921023 | Z62: 385.3472053 | AA62: 385.3472053 | AB62: 95.85921023
A63: 0.5 | B63: 383.0637528 | C63: 94.21003264 | D63: 47.09699757 | E63: 2.816725419 | F63: 0.4745044802 | G63: -0.3237596827 | H63: 1.672993222 | I63: 0.449744513 | J63: 0.02123277601 | K63: 0.0598068999 | L63: -0.3237596827 | M63: -1.672993222 | N63: -1.223248709 | O63: -2.28345251 | P63: -1.649177589 | Q63: 0.2920979141 | R63: 0.003160500871 | Y63: 94.21003264 | Z63: 383.0637528 | AA63: 383.0637528 | AB63: 94.21003264
A64: 0.5083 | B64: 380.5660976 | C64: 92.24843279 | D64: 88.94332947 | E64: 3.17587082 | F64: 0.3601431048 | G64: -0.4435248957 | H64: 1.949113383 | I64: 0.501862829 | J64: 0.01124311408 | K64: 0.03570667794 | L64: -0.4435248957 | M64: -1.949113383 | N64: -1.447250554 | O64: -2.497655203 | P64: -1.961599845 | Q64: -0.2142026926 | R64: -0.3124222562 | Y64: 92.24843279 | Z64: 380.5660976 | AA64: 380.5660976 | AB64: 92.24843279
A65: 0.5167 | B65: 375.7571249 | C65: 89.84941638 | D65: 45.10232477 | E65: 5.374150966 | F65: 3.441364374 | G65: 0.5367306585 | H65: 1.654198928 | I65: 0.7303098621 | J65: 0.02217180611 | K65: 0.1191546332 | L65: 0.5367306585 | M65: -1.654198928 | N65: -0.9238890658 | O65: -4.808972746 | P65: -2.399016411 | Q65: -2.311317543 | R65: -0.4374165656 | Y65: 89.84941638 | Z65: 375.7571249 | AA65: 375.7571249 | AB65: 89.84941638
A66: 0.525 | B66: 370.7689989 | C66: 87.19944385 | D66: 231.9070245 | E66: 5.648340899 | F66: 0.7770496995 | G66: -0.1095512032 | H66: 2.365313904 | I66: 0.7519209002 | J66: 0.004312072919 | K66: 0.02435605783 | L66: -0.1095512032 | M66: -2.365313904 | N66: -1.613393004 | O66: -4.988125947 | P66: -2.649972537 | Q66: -0.1791532014 | R66: -0.2509561259 | Y66: 87.19944385 | Z66: 370.7689989 | AA66: 370.7689989 | AB66: 87.19944385
A67: 0.5333 | B67: 364.6133735 | C67: 84.65232346 | D67: 81.9676474 | E67: 6.661797587 | F67: 3.606881117 | G67: 0.5571318282 | H67: 1.91364247 | I67: 0.8235914329 | J67: 0.01219993536 | K67: 0.08127349994 | L67: 0.5571318282 | M67: -1.91364247 | N67: -1.090051037 | O67: -6.155625461 | P67: -2.547120389 | Q67: -1.167499514 | R67: 0.1028521483 | Y67: 84.65232346 | Z67: 364.6133735 | AA67: 364.6133735 | AB67: 84.65232346
A68: 0.5417 | B68: 358.0048261 | C68: 81.38813112 | D68: 122.8190158 | E68: 7.370742864 | F68: 3.260379615 | G68: 0.5132681692 | H68: 2.089265613 | I68: 0.8675112606 | J68: 0.008142061665 | K68: 0.06001304291 | L68: 0.5132681692 | M68: -2.089265613 | N68: -1.221754352 | O68: -6.608547402 | P68: -3.264192334 | Q68: -0.4529219416 | R68: -0.7170719459 | Y68: =IF($A$1=0,0,C68) -> 81.38813112 | Z68: =IF($A$1=0,0,B68) -> 358.0048261 | AA68: =IF($A$1=0,0,B68) -> 358.0048261 | AB68: =IF($A$1=0,0,C68) -> 81.38813112
A69: 0.55 | B69: 351.1854064 | C69: 79.25148134 | D69: 44.83682279 | E69: 7.146310702 | F69: 8.139745988 | G69: 0.9106108523 | H69: 1.65163483 | I69: 0.8540818942 | J69: =1/D69 -> 0.02230309682 | K69: =E69/D69 -> 0.1593848595 | L69: =LOG(F69) -> 0.9106108523 | M69: -1.65163483 | N69: -0.7975529361 | O69: =(B69-B68) -> -6.81941965 | P69: =(C69-C68) -> -2.136649781 | Q69: -0.2108722476 | R69: 1.127542554 | Y69: 79.25148134 | Z69: 351.1854064 | AA69: 351.1854064 | AB69: 79.25148134
A70: 0.5583 | B70: 345.8072973 | C70: 77.2505908 | D70: =((O70^2+P70^2)^(3/2))/F70 -> 87.72833414 | E70: =SQRT(O70^2+P70^2) -> 5.738259405 | F70: =ABS(O70*R70-Q70*P70) -> 2.153776573 | G70: =LOG10(F70) -> 0.3332006487 | H70: =LOG10(D70) -> 1.943139883 | I70: 0.7587801771 | J70: 0.01139882582 | K70: 0.06540941944 | L70: 0.3332006487 | M70: =LOG(J70) -> -1.943139883 | N70: -1.184359706 | O70: -5.378109149 | P70: -2.000890546 | Q70: =(O70-O69) -> 1.441310501 | R70: 0.1357592348 | Y70: 77.2505908 | Z70: 345.8072973 | AA70: 345.8072973 | AB70: 77.2505908
A71: 0.5667 | B71: 338.8352175 | C71: 75.6697232 | D71: 67.06352109 | E71: 7.149058598 | F71: 5.448290033 | G71: 0.7362602186 | H71: 1.826486352 | I71: 0.8542488568 | J71: 0.01491123615 | K71: 0.106601301 | L71: 0.7362602186 | M71: -1.826486352 | N71: -0.972237495 | O71: -6.972079781 | P71: -1.580867597 | Q71: -1.593970633 | R71: 0.4200229488 | Y71: 75.6697232 | Z71: 338.8352175 | AA71: 338.8352175 | AB71: 75.6697232
A72: 0.575 | B72: 332.8081101 | C72: 73.93969211 | D72: 97.30211909 | E72: 6.270488933 | F72: 2.533855932 | G72: 0.4037819185 | H72: 1.988122299 | I72: 0.7973014057 | J72: 0.01027726846 | K72: 0.06444349817 | L72: 0.4037819185 | M72: -1.988122299 | N72: -1.190820893 | O72: -6.027107424 | P72: -1.730031087 | Q72: 0.9449723573 | R72: -0.1491634899 | Y72: 73.93969211 | Z72: 332.8081101 | AA72: 332.8081101 | AB72: 73.93969211
A73: 0.5833 | B73: 326.5605058 | C73: 72.96551017 | D73: 51.20619739 | E73: 6.323099669 | F73: 4.937050352 | G73: 0.6934675566 | H73: 1.709322526 | I73: 0.8009300275 | J73: 0.01952888617 | K73: 0.1234830937 | L73: 0.6934675566 | M73: -1.709322526 | N73: -0.9083924985 | O73: -6.247604258 | P73: -0.9741819452 | Q73: -0.2204968338 | R73: 0.755849142 | Y73: 72.96551017 | Z73: 326.5605058 | AA73: 326.5605058 | AB73: 72.96551017
A74: 0.5917 | B74: 320.2168739 | C74: 71.85910641 | D74: 364.5145139 | E74: 6.43939398 | F74: 0.7325211465 | G74: -0.1351798336 | H74: 2.561714825 | I74: 0.8088449972 | J74: 0.002743374988 | K74: 0.01766567238 | L74: -0.1351798336 | M74: -2.561714825 | N74: -1.752869828 | O74: -6.343631891 | P74: -1.106403753 | Q74: -0.09602763273 | R74: -0.1322218083 | Y74: 71.85910641 | Z74: 320.2168739 | AA74: 320.2168739 | AB74: 71.85910641
A75: 0.6 | B75: 314.0968601 | C75: 71.29278184 | D75: 73.04135479 | E75: 6.146160822 | F75: 3.178651679 | G75: 0.5022429399 | H75: 1.86356882 | I75: 0.78860392 | J75: 0.0136908742 | K75: 0.08414631465 | L75: 0.5022429399 | M75: -1.86356882 | N75: -1.0749649 | O75: -6.120013835 | P75: -0.5663245695 | Q75: 0.2236180557 | R75: 0.540079184 | Y75: 71.29278184 | Z75: 314.0968601 | AA75: 314.0968601 | AB75: 71.29278184
A76: 0.6083 | B76: 307.3484827 | C76: 70.86126702 | D76: 261.8453621 | E76: 6.762159584 | F76: 1.180895211 | G76: 0.07221136125 | H76: 2.418044886 | I76: 0.8300854157 | J76: 0.003819047976 | K76: 0.02582501187 | L76: 0.07221136125 | M76: -2.418044886 | N76: -1.58795947 | O76: -6.748377375 | P76: -0.4315148254 | Q76: -0.6283635402 | R76: 0.1348097442 | Y76: 70.86126702 | Z76: 307.3484827 | AA76: 307.3484827 | AB76: 70.86126702
A77: 0.6167 | B77: 300.4609444 | C77: 70.65355978 | D77: 208.3422132 | E77: 6.890669547 | F77: 1.570388102 | G77: 0.1960069961 | H77: 2.318777273 | I77: 0.8382614231 | J77: 0.004799795417 | K77: 0.03307380411 | L77: 0.1960069961 | M77: -2.318777273 | N77: -1.48051585 | O77: -6.887538349 | P77: -0.2077072351 | Q77: -0.1391609741 | R77: 0.2238075902 | Y77: 70.65355978 | Z77: 300.4609444 | AA77: 300.4609444 | AB77: 70.65355978
A78: 0.625 | B78: 292.9799677 | C78: 70.56422372 | D78: 446.1815199 | E78: 7.481510095 | F78: 0.9385474202 | G78: -0.02754377971 | H78: 2.649511579 | I78: 0.8739892663 | J78: 0.002241240292 | K78: 0.01676786187 | L78: -0.02754377971 | M78: -2.649511579 | N78: -1.775522312 | O78: -7.480976699 | P78: -0.08933606389 | Q78: -0.5934383498 | R78: 0.1183711712 | Y78: 70.56422372 | Z78: 292.9799677 | AA78: 292.9799677 | AB78: 70.56422372
A79: 0.6333 | B79: 284.2505111 | C79: 70.58776687 | D79: 695.8523432 | E79: 8.729488328 | F79: 0.9559810244 | G79: -0.01955072808 | H79: 2.842517094 | I79: 0.9409887886 | J79: 0.001437086488 | K79: 0.01254502972 | L79: -0.01955072808 | M79: -2.842517094 | N79: -1.901528305 | O79: -8.729456581 | P79: 0.02354314693 | Q79: -1.248479882 | R79: 0.1128792108 | Y79: 70.58776687 | Z79: 284.2505111 | AA79: 284.2505111 | AB79: 70.58776687
A80: 0.6417 | B80: 276.2361195 | C80: 70.68720078 | D80: 757.9446937 | E80: 8.015008396 | F80: 0.6793200424 | G80: -0.1679255719 | H80: 2.879637517 | I80: 0.9039039816 | J80: 0.001319357479 | K80: 0.01057466127 | L80: -0.1679255719 | M80: -2.879637517 | N80: -1.975733535 | O80: -8.014391586 | P80: 0.09943391471 | Q80: 0.715064995 | R80: 0.07589076778 | Y80: 70.68720078 | Z80: 276.2361195 | AA80: 276.2361195 | AB80: 70.68720078
A81: 0.65 | B81: 269.3729463 | C81: 71.18168647 | D81: 99.31127024 | E81: 6.880963759 | F81: 3.28056974 | G81: 0.5159492747 | H81: 1.996998537 | I81: 0.8376492705 | J81: 0.01006935061 | K81: 0.06928683665 | L81: 0.5159492747 | M81: -1.996998537 | N81: -1.159349266 | O81: -6.863173184 | P81: 0.4944856855 | Q81: 1.151218401 | R81: 0.3950517708 | Y81: 71.18168647 | Z81: 269.3729463 | AA81: 269.3729463 | AB81: 71.18168647
A82: 0.6583 | B82: 261.794211 | C82: 72.4986027 | D82: 86.03198803 | E82: 7.692301141 | F82: 5.290648085 | G82: 0.7235088748 | H82: 1.934659959 | I82: 0.8860562778 | J82: 0.01162358354 | K82: 0.08941210493 | L82: 0.7235088748 | M82: -1.934659959 | N82: -1.048603681 | O82: -7.578735282 | P82: 1.316916236 | Q82: -0.7155620976 | R82: 0.8224305504 | Y82: 72.4986027 | Z82: 261.794211 | AA82: 261.794211 | AB82: 72.4986027
A83: 0.6667 | B83: 253.3563591 | C83: 75.22011747 | D83: 73.25168204 | E83: 8.865888959 | F83: 9.513695814 | G83: 0.9783492614 | H83: 1.864817602 | I83: 0.9477222877 | J83: 0.01365156365 | K83: 0.1210332475 | L83: 0.9783492614 | M83: -1.864817602 | N83: -0.9170953139 | O83: -8.437851885 | P83: 2.721514763 | Q83: -0.8591166025 | R83: 1.404598527 | Y83: 75.22011747 | Z83: 253.3563591 | AA83: 253.3563591 | AB83: 75.22011747
A84: 0.675 | B84: 246.7226013 | C84: 77.68273452 | D84: 130.0060473 | E84: 7.076102445 | F84: 2.725328019 | G84: 0.4354187812 | H84: 2.113963554 | I84: 0.8497941118 | J84: 0.007691949878 | K84: 0.05442902534 | L84: 0.4354187812 | M84: -2.113963554 | N84: -1.264169442 | O84: -6.63375784 | P84: 2.46261705 | Q84: 1.804094044 | R84: -0.2588977132 | Y84: 77.68273452 | Z84: 246.7226013 | AA84: 246.7226013 | AB84: 77.68273452
A85: 0.6833 | B85: 239.732813 | C85: 81.19266606 | D85: 78.81868793 | E85: 7.821557394 | F85: 6.070864064 | G85: 0.7832505084 | H85: 1.896629201 | I85: 0.8932932365 | J85: 0.01268734644 | K85: 0.09923480839 | L85: 0.7832505084 | M85: -1.896629201 | N85: -1.003335965 | O85: -6.989788308 | P85: 3.509931549 | Q85: -0.3560304682 | R85: 1.047314498 | Y85: 81.19266606 | Z85: 239.732813 | AA85: 239.732813 | AB85: 81.19266606
A86: 0.6917 | B86: 233.8880142 | C86: 84.9641392 | D86: 57.56328406 | E86: 6.95598181 | F86: 5.84695498 | G86: 0.7669297499 | H86: 1.760145563 | I86: 0.8423584377 | J86: 0.01737218465 | K86: 0.1208406005 | L86: 0.7669297499 | M86: -1.760145563 | N86: -0.9177871254 | O86: -5.844798831 | P86: 3.77147313 | Q86: 1.144989477 | R86: 0.2615415818 | Y86: 84.9641392 | Z86: 233.8880142 | AA86: 233.8880142 | AB86: 84.9641392
A87: 0.7 | B87: 227.9684956 | C87: 89.83728889 | D87: 73.20617016 | E87: 7.667352045 | F87: 6.157274647 | G87: 0.7893885259 | H87: 1.864547687 | I87: 0.8846454043 | J87: 0.01366005076 | K87: 0.1047364181 | L87: 0.7893885259 | M87: -1.864547687 | N87: -0.9799022827 | O87: -5.919518512 | P87: 4.873149698 | Q87: -0.07471968074 | R87: 1.101676568 | Y87: 89.83728889 | Z87: 227.9684956 | AA87: 227.9684956 | AB87: 89.83728889
A88: 0.7083 | B88: 223.7346879 | C88: 94.83022453 | D88: 31.43732206 | E88: 6.546337488 | F88: 8.923795901 | G88: 0.9505496288 | H88: 1.497445544 | I88: 0.815998391 | J88: 0.03180932517 | K88: 0.2082345778 | L88: 0.9505496288 | M88: -1.497445544 | N88: -0.6814471533 | O88: -4.233807767 | P88: 4.992935639 | Q88: 1.685710744 | R88: 0.1197859411 | Y88: 94.83022453 | Z88: 223.7346879 | AA88: 223.7346879 | AB88: 94.83022453
A89: 0.7167 | B89: 219.7001592 | C89: 101.5623497 | D89: 57.84123299 | E89: 7.848498632 | F89: 8.358382056 | G89: 0.9221222186 | H89: 1.762237542 | I89: 0.8947865869 | J89: 0.01728870476 | K89: 0.1356903756 | L89: 0.9221222186 | M89: -1.762237542 | N89: -0.8674509552 | O89: -4.034528638 | P89: 6.732125181 | Q89: 0.1992791295 | R89: 1.739189541 | Y89: 101.5623497 | Z89: 219.7001592 | AA89: 219.7001592 | AB89: 101.5623497
A90: 0.725 | B90: 216.2895718 | C90: 107.579491 | D90: 251.4559896 | E90: 6.916508992 | F90: 1.31582718 | G90: 0.1191988529 | H90: 2.400461985 | I90: 0.8398869459 | J90: 0.003976839055 | K90: 0.02750584308 | L90: 0.1191988529 | M90: -2.400461985 | N90: -1.560575039 | O90: -3.410587474 | P90: 6.017141325 | Q90: 0.623941164 | R90: -0.7149838557 | Y90: 107.579491 | Z90: 216.2895718 | AA90: 216.2895718 | AB90: 107.579491
A91: 0.7333 | B91: 213.8156658 | C91: 115.2700477 | D91: 46.48075099 | E91: 8.078667689 | F91: 11.34347441 | G91: 1.054746096 | H91: 1.667273136 | I91: 0.907339744 | J91: 0.02151428234 | K91: 0.1738067375 | L91: 1.054746096 | M91: -1.667273136 | N91: -0.7599333923 | O91: -2.473905936 | P91: 7.690556614 | Q91: 0.9366815375 | R91: 1.67341529 | Y91: 115.2700477 | Z91: 213.8156658 | AA91: 213.8156658 | AB91: 115.2700477
A92: 0.7417 | B92: 211.8575736 | C92: 120.9454174 | D92: 212.4674692 | E92: 6.003661081 | F92: 1.018488331 | G92: 0.007956057419 | H92: 2.327292445 | I92: 0.7784161675 | J92: 0.004706602867 | K92: 0.02825684846 | L92: 0.007956057419 | M92: -2.327292445 | N92: -1.548876277 | O92: -1.958092226 | P92: 5.675369698 | Q92: 0.5158137106 | R92: -2.015186916 | Y92: 120.9454174 | Z92: 211.8575736 | AA92: 211.8575736 | AB92: 120.9454174
A93: 0.75 | B93: 210.3792518 | C93: 127.5055218 | D93: 68.25398033 | E93: 6.724611937 | F93: 4.455266616 | G93: 0.6488736985 | H93: 1.834127983 | I93: 0.8276672272 | J93: 0.0146511602 | K93: 0.09852336675 | L93: 0.6488736985 | M93: -1.834127983 | N93: -1.006460756 | O93: -1.478321825 | P93: 6.560104441 | Q93: 0.4797704006 | R93: 0.884734743 | Y93: 127.5055218 | Z93: 210.3792518 | AA93: 210.3792518 | AB93: 127.5055218
A94: 0.7583 | B94: 209.5617303 | C94: 135.0207903 | D94: 75.17248582 | E94: 7.559603282 | F94: 5.746959053 | G94: 0.7594381028 | H94: 1.876058912 | I94: 0.8784990049 | J94: 0.01330273955 | K94: 0.1005634335 | L94: 0.7594381028 | M94: -1.876058912 | N94: -0.997559907 | O94: -0.8175214916 | P94: 7.515268484 | Q94: 0.6608003334 | R94: 0.9551640426 | Y94: 135.0207903 | Z94: 209.5617303 | AA94: 209.5617303 | AB94: 135.0207903
A95: 0.7667 | B95: 209.4533395 | C95: 142.1479961 | D95: 72.2590899 | E95: 7.128029957 | F95: 5.012057691 | G95: 0.7000160613 | H95: 1.858892487 | I95: 0.8529695162 | J95: 0.01383908933 | K95: 0.09864544331 | L95: 0.7000160613 | M95: -1.858892487 | N95: -1.005922971 | O95: -0.1083908347 | P95: 7.127205798 | Q95: 0.7091306569 | R95: -0.3880626857 | Y95: 142.1479961 | Z95: 209.4533395 | AA95: 209.4533395 | AB95: 142.1479961
A96: 0.775 | B96: 210.1305353 | C96: 148.4628631 | D96: 46.48491718 | E96: 6.351073938 | F96: 5.510987738 | G96: 0.7412294447 | H96: 1.667312062 | I96: 0.8028471687 | J96: 0.02151235413 | K96: 0.1366265517 | L96: 0.7412294447 | M96: -1.667312062 | N96: -0.8644648928 | O96: 0.6771958272 | P96: 6.314867059 | Q96: 0.7855866619 | R96: -0.8123387388 | Y96: 148.4628631 | Z96: 210.1305353 | AA96: 210.1305353 | AB96: 148.4628631
A97: 0.7833 | B97: 210.9682503 | C97: 154.7095471 | D97: 236.2238906 | E97: 6.302604767 | F97: 1.059830473 | G97: 0.02523640263 | H97: 2.373323818 | I97: 0.7995200736 | J97: 0.004233272077 | K97: 0.02668064077 | L97: 0.02523640263 | M97: -2.373323818 | N97: -1.573803745 | O97: 0.8377149879 | P97: 6.246683956 | Q97: 0.1605191606 | R97: -0.06818310371 | Y97: 154.7095471 | Z97: 210.9682503 | AA97: 210.9682503 | AB97: 154.7095471
A98: 0.7917 | B98: 213.4502854 | C98: 161.9946645 | D98: 48.48940778 | E98: 7.69632603 | F98: 9.401637254 | G98: 0.9732034907 | H98: 1.68564688 | I98: 0.8862834569 | J98: 0.0206230607 | K98: 0.1587217989 | L98: 0.9732034907 | M98: -1.68564688 | N98: -0.7993634231 | O98: 2.482035174 | P98: 7.285117415 | Q98: 1.644320186 | R98: 1.038433459 | Y98: 161.9946645 | Z98: 213.4502854 | AA98: 213.4502854 | AB98: 161.9946645
A99: 0.8 | B99: 215.529558 | C99: 168.9351296 | D99: 182.9609899 | E99: 7.245235005 | F99: 2.078734045 | G99: 0.3177989288 | H99: 2.262358501 | I99: 0.8600524767 | J99: 0.005465645986 | K99: 0.03959988962 | L99: 0.3177989288 | M99: -2.262358501 | N99: -1.402306025 | O99: 2.079272527 | P99: 6.940465116 | Q99: -0.4027626469 | R99: -0.3446522985 | Y99: 168.9351296 | Z99: 215.529558 | AA99: 215.529558 | AB99: 168.9351296
A100: 0.8083 | B100: 218.3516477 | C100: 175.4387764 | D100: 58.76415685 | E100: 7.089542395 | F100: 6.063761376 | G100: 0.7827421024 | H100: 1.769112509 | I100: 0.8506182039 | J100: 0.01701717601 | K100: 0.1206439907 | L100: 0.7827421024 | M100: -1.769112509 | N100: -0.9184943054 | O100: 2.822089736 | P100: 6.503646738 | Q100: 0.7428172084 | R100: -0.4368183785 | Y100: 175.4387764 | Z100: 218.3516477 | AA100: 218.3516477 | AB100: 175.4387764
A101: 0.8167 | B101: 224.9493953 | C101: 183.0138446 | D101: 47.07946084 | E101: 10.04549307 | F101: 21.53189703 | G101: 1.333082294 | H101: 1.672831481 | I101: 1.001971258 | J101: 0.02124068505 | K101: 0.2133731544 | L101: 1.333082294 | M101: -1.672831481 | N101: -0.6708602223 | O101: 6.59774754 | P101: 7.575068208 | Q101: 3.775657804 | R101: 1.07142147 | Y101: 183.0138446 | Z101: 224.9493953 | AA101: 224.9493953 | AB101: 183.0138446
A102: 0.825 | B102: 231.0489501 | C102: 189.7990161 | D102: 528.2696489 | E102: 9.123766905 | F102: 1.437695404 | G102: 0.1576668845 | H102: 2.72285566 | I102: 0.9601741813 | J102: 0.001892972655 | K102: 0.01727104127 | L102: 0.1576668845 | M102: -2.72285566 | N102: -1.762681478 | O102: 6.099554878 | P102: 6.78517154 | Q102: -0.498192662 | R102: -0.7898966683 | Y102: 189.7990161 | Z102: 231.0489501 | AA102: 231.0489501 | AB102: 189.7990161
A103: 0.8333 | B103: 237.9033196 | C103: 196.3432556 | D103: 129.1289331 | E103: 9.476784862 | F103: 6.5911243 | G103: 0.8189595019 | H103: 2.111023563 | I103: 0.9766610216 | J103: 0.007744197804 | K103: 0.07339009651 | L103: 0.8189595019 | M103: -2.111023563 | N103: -1.134362541 | O103: 6.854369435 | P103: 6.544239525 | Q103: 0.7548145574 | R103: -0.2409320149 | Y103: 196.3432556 | Z103: 237.9033196 | AA103: 237.9033196 | AB103: 196.3432556
A104: 0.8417 | B104: 243.5055674 | C104: 201.5424362 | D104: 435.4456805 | E104: 7.643079219 | F104: 1.025347545 | G104: 0.01087109613 | H104: 2.638933987 | I104: 0.883268361 | J104: 0.002296497691 | K104: 0.01755231378 | L104: 0.01087109613 | M104: -2.638933987 | N104: -1.755665626 | O104: 5.602247877 | P104: 5.199180577 | Q104: -1.252121559 | R104: -1.345058948 | Y104: 201.5424362 | Z104: 243.5055674 | AA104: 243.5055674 | AB104: 201.5424362
A105: 0.85 | B105: 250.9377302 | C105: 207.2114948 | D105: 118.6828591 | E105: 9.347473918 | F105: 6.881684947 | G105: 0.8376947861 | H105: 2.074388 | I105: 0.970694262 | J105: 0.008425816565 | K105: 0.07876010058 | L105: 0.8376947861 | M105: -2.074388 | N105: -1.103693738 | O105: 7.432162773 | P105: 5.669058579 | Q105: 1.829914896 | R105: 0.4698780017 | Y105: 207.2114948 | Z105: 250.9377302 | AA105: 250.9377302 | AB105: 207.2114948
A106: 0.8583 | B106: 255.8915219 | C106: 211.2540259 | D106: 133.2694604 | E106: 6.393911909 | F106: 1.96141416 | G106: 0.2925693063 | H106: 2.124730639 | I106: 0.8057666485 | J106: 0.007503594574 | K106: 0.0479773227 | L106: 0.2925693063 | M106: -2.124730639 | N106: -1.318963991 | O106: 4.953791651 | P106: 4.04253111 | Q106: -2.478371121 | R106: -1.626527469 | Y106: 211.2540259 | Z106: 255.8915219 | AA106: 255.8915219 | AB106: 211.2540259
A107: 0.8667 | B107: 262.9582075 | C107: 215.9095314 | D107: 110.0849218 | E107: 8.462374218 | F107: 5.504892483 | G107: 0.7407488411 | H107: 2.041727838 | I107: 0.9274922265 | J107: 0.009083896171 | K107: 0.07687132876 | L107: 0.7407488411 | M107: -2.041727838 | N107: -1.114235612 | O107: 7.066685659 | P107: 4.655505471 | Q107: 2.112894008 | R107: 0.6129743617 | Y107: 215.9095314 | Z107: 262.9582075 | AA107: 262.9582075 | AB107: 215.9095314
A108: 0.875 | B108: 267.565463 | C108: 219.2257015 | D108: 92.14129674 | E108: 5.676599959 | F108: 1.985228719 | G108: 0.2978105493 | H108: 1.96445432 | I108: 0.7540882897 | J108: 0.01085289697 | K108: 0.06160755448 | L108: 0.2978105493 | M108: -1.96445432 | N108: -1.21036603 | O108: 4.607255465 | P108: 3.316170107 | Q108: -2.459430195 | R108: -1.339335364 | Y108: 219.2257015 | Z108: 267.565463 | AA108: 267.565463 | AB108: 219.2257015
A109: 0.8833 | B109: 273.3862858 | C109: 222.6315919 | D109: 84.94328398 | E109: 6.744039393 | F109: 3.611031259 | G109: 0.557631248 | H109: 1.929129047 | I109: 0.8289200984 | J109: 0.01177256109 | K109: 0.07939461575 | L109: 0.557631248 | M109: -1.929129047 | N109: -1.100208949 | O109: 5.820822777 | P109: 3.405890417 | Q109: 1.213567312 | R109: 0.08972030927 | Y109: 222.6315919 | Z109: 273.3862858 | AA109: 273.3862858 | AB109: 222.6315919
A110: 0.8917 | B110: 278.7875853 | C110: 225.6194431 | D110: 234.1355437 | E110: 6.172624301 | F110: 1.00448206 | G110: 0.001942184675 | H110: 2.369467348 | I110: 0.7904698443 | J110: 0.004271030295 | K110: 0.02636346538 | L110: 0.001942184675 | M110: -2.369467348 | N110: -1.578997504 | O110: 5.40129949 | P110: 2.987851164 | Q110: -0.4195232871 | R110: -0.4180392526 | Y110: 225.6194431 | Z110: 278.7875853 | AA110: 278.7875853 | AB110: 225.6194431
A111: 0.9 | B111: 284.4493498 | C111: 227.8296789 | D111: 45.09946707 | E111: 6.077887849 | F111: 4.978363871 | G111: 0.6970866362 | H111: 1.65417141 | I111: 0.7837526821 | J111: 0.02217321101 | K111: 0.1347662898 | L111: 0.6970866362 | M111: -1.65417141 | N111: -0.8704187279 | O111: 5.661764567 | P111: 2.210235889 | Q111: 0.2604650774 | R111: -0.7776152746 | Y111: 227.8296789 | Z111: 284.4493498 | AA111: 284.4493498 | AB111: 227.8296789
A112: 0.9083 | B112: 292.0538992 | C112: 229.6398465 | D112: 72.82489247 | E112: 7.817024868 | F112: 6.559105686 | G112: 0.8168446287 | H112: 1.862279852 | I112: 0.8930414936 | J112: 0.01373156851 | K112: 0.1073400125 | L112: 0.8168446287 | M112: -1.862279852 | N112: -0.9692383584 | O112: 7.604549386 | P112: 1.810167514 | Q112: 1.942784819 | R112: -0.4000683758 | Y112: 229.6398465 | Z112: 292.0538992 | AA112: 292.0538992 | AB112: 229.6398465
A113: 0.9167 | B113: 301.7220244 | C113: 231.0559281 | D113: 138.5777245 | E113: 9.771280937 | F113: 6.732263008 | G113: 0.8281610742 | H113: 2.141693426 | I113: 0.9899515 | J113: 0.007216166982 | K113: 0.07051119487 | L113: 0.8281610742 | M113: -2.141693426 | N113: -1.151741926 | O113: 9.668125146 | P113: 1.416081677 | Q113: 2.063575759 | R113: -0.3940858366 | Y113: 231.0559281 | Z113: 301.7220244 | AA113: 301.7220244 | AB113: 231.0559281
A114: 0.925 | B114: 313.3881181 | C114: 232.2057595 | D114: 298.1294472 | E114: 11.72262157 | F114: 5.403427899 | G114: 0.7326693608 | H114: 2.474404875 | I114: 1.069024745 | J114: 0.003354247658 | K114: 0.03932057594 | L114: 0.7326693608 | M114: -2.474404875 | N114: -1.40538013 | O114: 11.66609378 | P114: 1.149831388 | Q114: 1.997968639 | R114: -0.2662502894 | Y114: 232.2057595 | Z114: 313.3881181 | AA114: 313.3881181 | AB114: 232.2057595
A115: 0.9333 | B115: 323.4039322 | C115: 233.1339392 | D115: 1478.676 | E115: 10.05873001 | F115: 0.6882661802 | G115: -0.1622435702 | H115: 3.169873024 | I115: 1.002543151 | J115: 0.0006762806729 | K115: 0.006802524699 | L115: -0.1622435702 | M115: -3.169873024 | N115: -2.167329873 | O115: 10.01581409 | P115: 0.9281796832 | Q115: -1.650279695 | R115: -0.2216517044 | Y115: 233.1339392 | Z115: 323.4039322 | AA115: 323.4039322 | AB115: 233.1339392
A116: 0.9417 | B116: 334.1982063 | C116: 233.8979379 | D116: 535.3592495 | E116: 10.82127747 | F116: 2.366956566 | G116: 0.3741902886 | H116: 2.72864531 | I116: 1.034278533 | J116: 0.001867904591 | K116: 0.02021311387 | L116: 0.3741902886 | M116: -2.72864531 | N116: -1.694366777 | O116: 10.79427404 | P116: 0.7639987348 | Q116: 0.7784599487 | R116: -0.1641809485 | Y116: 233.8979379 | Z116: 334.1982063 | AA116: 334.1982063 | AB116: 233.8979379
A117: 0.95 | B117: 343.0311299 | C117: 234.865105 | D117: 190.0516224 | E117: 8.885716165 | F117: 3.691524272 | G117: 0.5672057282 | H117: 2.278871581 | I117: 0.9486924365 | J117: 0.0052617283 | K117: 0.04675422421 | L117: 0.5672057282 | M117: -2.278871581 | N117: -1.330179145 | O117: 8.832923614 | P117: 0.9671671017 | Q117: -1.961350425 | R117: 0.2031683669 | Y117: 234.865105 | Z117: 343.0311299 | AA117: 343.0311299 | AB117: 234.865105
A118: 0.9583 | B118: 350.4657064 | C118: 235.5103736 | D118: 278.7518576 | E118: 7.462526351 | F118: 1.490870299 | G118: 0.1734398627 | H118: 2.44521777 | I118: 0.8728858777 | J118: 0.003587420039 | K118: 0.02677121657 | L118: 0.1734398627 | M118: -2.44521777 | N118: -1.572331893 | O118: 7.434576523 | P118: 0.6452685179 | Q118: -1.398347091 | R118: -0.3218985837 | Y118: 235.5103736 | Z118: 350.4657064 | AA118: 350.4657064 | AB118: 235.5103736
A119: 0.9667 | B119: 357.1096948 | C119: 235.7811641 | D119: 129.296928 | E119: 6.649504425 | F119: 2.273943301 | G119: 0.3567796316 | H119: 2.111588207 | I119: 0.8227892794 | J119: 0.007734135802 | K119: 0.05142817024 | L119: 0.3567796316 | M119: -2.111588207 | N119: -1.288798927 | O119: 6.643988378 | P119: 0.2707905726 | Q119: -0.7905881448 | R119: -0.3744779454 | Y119: 235.7811641 | Z119: 357.1096948 | AA119: 357.1096948 | AB119: 235.7811641
A120: 0.975 | B120: 363.0200448 | C120: 235.8182547 | D120: 152.487555 | E120: 5.910466373 | F120: 1.354037997 | G120: 0.1316308516 | H120: 2.183234401 | I120: 0.7716217508 | J120: 0.006557912218 | K120: 0.03876031965 | L120: 0.1316308516 | M120: -2.183234401 | N120: -1.41161265 | O120: 5.910349993 | P120: 0.03709053179 | Q120: -0.7336383848 | R120: -0.2337000408 | Y120: 235.8182547 | Z120: 363.0200448 | AA120: 363.0200448 | AB120: 235.8182547
A121: 0.9833 | B121: 368.0850227 | C121: 235.3177048 | D121: 41.90498745 | E121: 5.089651366 | F121: 3.146287388 | G121: 0.4977983894 | H121: 1.622265715 | I121: 0.7066880348 | J121: 0.02386350793 | K121: 0.1214569357 | L121: 0.4977983894 | M121: -1.622265715 | N121: -0.9155776801 | O121: 5.064977877 | P121: -0.5005498267 | Q121: -0.8453721163 | R121: -0.5376403585 | Y121: 235.3177048 | Z121: 368.0850227 | AA121: 368.0850227 | AB121: 235.3177048
A122: 0.9917 | B122: 372.2863981 | C122: 234.2251208 | D122: 23.84483687 | E122: 4.341116889 | F122: 3.430915988 | G122: 0.5354100837 | H122: 1.377394356 | I122: 0.6376014798 | J122: 0.04193780001 | K122: 0.1820568919 | L122: 0.5354100837 | M122: -1.377394356 | N122: -0.7397928758 | O122: 4.201375495 | P122: -1.092583995 | Q122: -0.8636023815 | R122: -0.5920341684 | Y122: 234.2251208 | Z122: 372.2863981 | AA122: 372.2863981 | AB122: 234.2251208
A123: 1 | B123: 375.9142153 | C123: 232.0877185 | D123: 14.88195234 | E123: 4.210646806 | F123: 5.016335002 | G123: 0.7003865319 | H123: 1.172659909 | I123: 0.6243488138 | J123: 0.06719548463 | K123: 0.2829364527 | L123: 0.7003865319 | M123: -1.172659909 | N123: -0.5483110957 | O123: 3.627817191 | P123: -2.137402384 | Q123: -0.5735583045 | R123: -1.044818389 | Y123: 232.0877185 | Z123: 375.9142153 | AA123: 375.9142153 | AB123: 232.0877185
A124: 1.0083 | B124: 379.0591119 | C124: 228.0697657 | D124: 16.91225088 | E124: 5.102383676 | F124: 7.854488805 | G124: 0.8951179251 | H124: 1.228201412 | I124: 0.7077731125 | J124: 0.05912873497 | K124: 0.3016974921 | L124: 0.8951179251 | M124: -1.228201412 | N124: -0.5204282999 | O124: 3.144896575 | P124: -4.017952801 | Q124: -0.4829206156 | R124: -1.880550417 | Y124: 228.0697657 | Z124: 379.0591119 | AA124: 379.0591119 | AB124: 228.0697657
A125: 1.0167 | B125: 381.1813492 | C125: 224.4084178 | D125: 25.36942143 | E125: 4.231945066 | F125: 2.987510922 | G125: 0.4753095018 | H125: 1.404310563 | I125: 0.6265400215 | J125: 0.03941753275 | K125: 0.1668128332 | L125: 0.4753095018 | M125: -1.404310563 | N125: -0.7777705413 | O125: 2.1222373 | P125: -3.661347823 | Q125: -1.022659275 | R125: 0.3566049784 | Y125: 224.4084178 | Z125: 381.1813492 | AA125: 381.1813492 | AB125: 224.4084178
A126: 1.025 | B126: 382.7979287 | C126: 217.9041438 | D126: 38.18173887 | E126: 6.702157148 | F126: 7.884753433 | G126: 0.8967881169 | H126: 1.581855703 | I126: 0.8262146067 | J126: 0.0261905306 | K126: 0.1755330518 | L126: 0.8967881169 | M126: -1.581855703 | N126: -0.7556410964 | O126: 1.616579446 | P126: -6.504274081 | Q126: -0.5056578545 | R126: -2.842926259 | Y126: 217.9041438 | Z126: 382.7979287 | AA126: 382.7979287 | AB126: 217.9041438
A127: 1.0333 | B127: 383.9013072 | C127: 212.5694793 | D127: 111.7047797 | E127: 5.447576474 | F127: 1.447232312 | G127: 0.1605382503 | H127: 2.048071757 | I127: 0.7362033356 | J127: 0.008952168406 | K127: 0.048767622 | L127: 0.1605382503 | M127: -2.048071757 | N127: -1.311868421 | O127: 1.103378572 | P127: -5.334664485 | Q127: -0.5132008744 | R127: 1.169609597 | Y127: 212.5694793 | Z127: 383.9013072 | AA127: 383.9013072 | AB127: 212.5694793
A128: 1.0417 | B128: 384.3280081 | C128: 203.3420872 | D128: 99.70720947 | E128: 9.237252711 | F128: 7.905000716 | G128: 0.8979019136 | H128: 1.998726562 | I128: 0.9655428251 | J128: 0.01002936503 | K128: 0.09264377931 | L128: 0.8979019136 | M128: -1.998726562 | N128: -1.033183737 | O128: 0.4267008635 | P128: -9.227392048 | Q128: -0.6766777081 | R128: -3.892727564 | Y128: 203.3420872 | Z128: 384.3280081 | AA128: 384.3280081 | AB128: 203.3420872
A129: 1.05 | B129: 384.354396 | C129: 196.205362 | D129: 129.7405054 | E129: 7.136774034 | F129: 2.801755629 | G129: 0.4474302532 | H129: 2.113075585 | I129: 0.8535019462 | J129: 0.007707693111 | K129: 0.05500806406 | L129: 0.4474302532 | M129: -2.113075585 | N129: -1.259573639 | O129: 0.02638786732 | P129: -7.13672525 | Q129: -0.4003129962 | R129: 2.090666799 | Y129: 196.205362 | Z129: 384.354396 | AA129: 384.354396 | AB129: 196.205362
A130: 1.0583 | B130: 383.3514724 | C130: 187.1329842 | D130: 102.806621 | E130: 9.127644482 | F130: 7.396990541 | G130: 0.8690550634 | H130: 2.012021085 | I130: 0.9603587161 | J130: 0.009726999979 | K130: 0.08878459768 | L130: 0.8690550634 | M130: -2.012021085 | N130: -1.051662369 | O130: -1.002923553 | P130: -9.072377755 | Q130: -1.02931142 | R130: -1.935652506 | Y130: 187.1329842 | Z130: 383.3514724 | AA130: 383.3514724 | AB130: 187.1329842
A131: 1.0667 | B131: 381.5350661 | C131: 177.4439741 | D131: 141.6702494 | E131: 9.857801424 | F131: 6.761787809 | G131: 0.8300615381 | H131: 2.151278658 | I131: 0.9937800655 | J131: 0.007058645019 | K131: 0.06958272092 | L131: 0.8300615381 | M131: -2.151278658 | N131: -1.157498593 | O131: -1.816406316 | P131: -9.689010115 | Q131: -0.8134827633 | R131: -0.6166323599 | Y131: 177.4439741 | Z131: 381.5350661 | AA131: 381.5350661 | AB131: 177.4439741
A132: 1.075 | B132: 378.4341613 | C132: 167.9025605 | D132: 79.42892926 | E132: 10.03265587 | F132: 12.7136145 | G132: 1.104269039 | H132: 1.899978708 | I132: 1.001415916 | J132: 0.01258987134 | K132: 0.1263098465 | L132: 1.104269039 | M132: -1.899978708 | N132: -0.8985627925 | O132: -3.100904841 | P132: -9.541413569 | Q132: -1.284498525 | R132: 0.1475965462 | Y132: =IF($A$1=0,0,C132) -> 167.9025605 | Z132: =IF($A$1=0,0,B132) -> 378.4341613 | AA132: =IF($A$1=0,0,B132) -> 378.4341613 | AB132: =IF($A$1=0,0,C132) -> 167.9025605
A133: 1.0833 | B133: 372.9637373 | C133: 157.2031553 | D133: 91.24405098 | E133: 12.01677205 | F133: 19.01774021 | G133: 1.27915891 | H133: 1.960204558 | I133: 1.079787823 | J133: =1/D133 -> 0.01095961862 | K133: =E133/D133 -> 0.1316992387 | L133: =LOG(F133) -> 1.27915891 | M133: -1.960204558 | N133: -0.8804167355 | O133: =(B133-B132) -> -5.470423985 | P133: =(C133-C132) -> -10.69940521 | Q133: -2.369519144 | R133: -1.157991645 | Y133: 157.2031553 | Z133: 372.9637373 | AA133: 372.9637373 | AB133: 157.2031553
A134: 1.0917 | B134: 369.2718247 | C134: 150.165301 | D134: =((O134^2+P134^2)^(3/2))/F134 -> 501.3598431 | E134: =SQRT(O134^2+P134^2) -> 7.947428022 | F134: =ABS(O134*R134-Q134*P134) -> 1.001221724 | G134: =LOG10(F134) -> 0.0005302640965 | H134: =LOG10(D134) -> 2.700149546 | I134: 0.9002266033 | J134: 0.001994575381 | K134: 0.01585174427 | L134: 0.0005302640965 | M134: =LOG(J134) -> -2.700149546 | N134: -1.799922942 | O134: -3.691912593 | P134: -7.03785433 | Q134: =(O134-O133) -> 1.778511391 | R134: 3.661550884 | Y134: 150.165301 | Z134: 369.2718247 | AA134: 369.2718247 | AB134: 150.165301
A135: 1.1 | B135: 364.7128037 | C135: 142.9603114 | D135: 112.9930563 | E135: 8.526226995 | F135: 5.485534065 | G135: 0.7392189164 | H135: 2.053051756 | I135: 0.9307568907 | J135: 0.008850101349 | K135: 0.07545797303 | L135: 0.7392189164 | M135: -2.053051756 | N135: -1.122294865 | O135: -4.559021 | P135: -7.204989541 | Q135: -0.867108407 | R135: -0.1671352114 | Y135: 142.9603114 | Z135: 364.7128037 | AA135: 364.7128037 | AB135: 142.9603114
A136: 1.1083 | B136: 359.7875223 | C136: 134.9184681 | D136: 712.9186634 | E136: 9.430251352 | F136: 1.176331756 | G136: 0.07052982121 | H136: 2.853039984 | I136: 0.9745232685 | J136: 0.001402684558 | K136: 0.01322766795 | L136: 0.07052982121 | M136: -2.853039984 | N136: -1.878516716 | O136: -4.925281376 | P136: -8.041843316 | Q136: -0.3662603759 | R136: -0.8368537749 | Y136: 134.9184681 | Z136: 359.7875223 | AA136: 359.7875223 | AB136: 134.9184681
A137: 1.1167 | B137: 354.4477686 | C137: 127.2069656 | D137: 166.3732677 | E137: 9.379778271 | F137: 4.960142689 | G137: 0.69549417 | H137: 2.221083547 | I137: 0.9721925722 | J137: 0.006010580989 | K137: 0.05637791696 | L137: 0.69549417 | M137: -2.221083547 | N137: -1.248890974 | O137: -5.339753678 | P137: -7.711502518 | Q137: -0.4144723015 | R137: 0.3303407983 | Y137: 127.2069656 | Z137: 354.4477686 | AA137: 354.4477686 | AB137: 127.2069656
A138: 1.125 | B138: 348.8444675 | C138: 119.6582922 | D138: 286.3237917 | E138: 9.4010347 | F138: 2.901813725 | G138: 0.4626695305 | H138: 2.456857437 | I138: 0.9731756557 | J138: 0.003492549446 | K138: 0.03283357854 | L138: 0.4626695305 | M138: -2.456857437 | N138: -1.483681781 | O138: -5.603301081 | P138: -7.548673422 | Q138: -0.263547403 | R138: 0.1628290958 | Y138: 119.6582922 | Z138: 348.8444675 | AA138: 348.8444675 | AB138: 119.6582922
A139: 1.1333 | B139: 343.6785704 | C139: 113.2723386 | D139: 172.4612883 | E139: 8.213823469 | F139: 3.213249646 | G139: 0.5069444683 | H139: 2.236691626 | I139: 0.9145453648 | J139: 0.005798402702 | K139: 0.04762705619 | L139: 0.5069444683 | M139: -2.236691626 | N139: -1.322146261 | O139: -5.165897108 | P139: -6.385953573 | Q139: 0.4374039722 | R139: 1.162719849 | Y139: 113.2723386 | Z139: 343.6785704 | AA139: 343.6785704 | AB139: 113.2723386
A140: 1.1417 | B140: 338.9007506 | C140: 106.6598945 | D140: 148.817658 | E140: 8.157939622 | F140: 3.648270189 | G140: 0.5620869945 | H140: 2.172654466 | I140: 0.9115804867 | J140: 0.006719632692 | K140: 0.05481835778 | L140: 0.5620869945 | M140: -2.172654466 | N140: -1.261073979 | O140: -4.777819819 | P140: -6.612444076 | Q140: 0.3880772898 | R140: -0.2264905029 | Y140: 106.6598945 | Z140: 338.9007506 | AA140: 338.9007506 | AB140: 106.6598945
A141: 1.15 | B141: 333.0615984 | C141: 101.0245169 | D141: 45.72882112 | E141: 8.114997234 | F141: 11.68624865 | G141: 1.067675123 | H141: 1.660190006 | I141: 0.9092883761 | J141: 0.02186804679 | K141: 0.1774591392 | L141: 1.067675123 | M141: -1.660190006 | N141: -0.7509016294 | O141: -5.839152242 | P141: -5.635377645 | Q141: -1.061332423 | R141: 0.9770664314 | Y141: 101.0245169 | Z141: 333.0615984 | AA141: 333.0615984 | AB141: 101.0245169
A142: 1.1583 | B142: 326.6615844 | C142: 95.97098485 | D142: 82.68656309 | E142: 8.154652929 | F142: 6.558152398 | G142: 0.8167815045 | H142: 1.917434941 | I142: 0.9114054817 | J142: 0.01209386341 | K142: 0.0986212587 | L142: 0.8167815045 | M142: -1.917434941 | N142: -1.006029459 | O142: -6.400013924 | P142: -5.053532049 | Q142: -0.5608616819 | R142: 0.5818455956 | Y142: 95.97098485 | Z142: 326.6615844 | AA142: 326.6615844 | AB142: 95.97098485
A143: 1.1667 | B143: 321.0511129 | C143: 91.43540757 | D143: 556.2557399 | E143: 7.21448908 | F143: 0.6750597833 | G143: -0.1706577643 | H143: 2.745274505 | I143: 0.8582055804 | J143: 0.001797734258 | K143: 0.01296973417 | L143: -0.1706577643 | M143: -2.745274505 | N143: -1.887068925 | O143: -5.610471585 | P143: -4.535577281 | Q143: 0.7895423384 | R143: 0.5179547681 | Y143: 91.43540757 | Z143: 321.0511129 | AA143: 321.0511129 | AB143: 91.43540757
A144: 1.175 | B144: 314.847193 | C144: 87.59807848 | D144: 58.73418524 | E144: 7.294773208 | F144: 6.609132131 | G144: 0.8201444345 | H144: 1.768890949 | I144: 0.8630117944 | J144: 0.01702585974 | K144: 0.1241997855 | L144: 0.8201444345 | M144: -1.768890949 | N144: -0.9058791543 | O144: -6.203919858 | P144: -3.837329091 | Q144: -0.5934482725 | R144: 0.6982481899 | Y144: 87.59807848 | Z144: 314.847193 | AA144: 314.847193 | AB144: 87.59807848
A145: 1.1833 | B145: 308.0390146 | C145: 84.83112925 | D145: 44.30014296 | E145: 7.348966003 | F145: 8.959289854 | G145: 0.9522735872 | H145: 1.646405128 | I145: 0.8662262383 | J145: 0.02257329059 | K145: 0.1658903451 | L145: 0.9522735872 | M145: -1.646405128 | N145: -0.7801788894 | O145: -6.808178414 | P145: -2.766949223 | Q145: -0.6042585561 | R145: 1.070379868 | Y145: 84.83112925 | Z145: 308.0390146 | AA145: 308.0390146 | AB145: 84.83112925
A146: 1.1917 | B146: 300.8286967 | C146: 82.65203258 | D146: 83.55331711 | E146: 7.532406446 | F146: 5.114904656 | G146: 0.7088375427 | H146: 1.921963696 | I146: 0.8769337463 | J146: 0.01196840574 | K146: 0.09015089653 | L146: 0.7088375427 | M146: -1.921963696 | N146: -1.04502995 | O146: -7.210317924 | P146: -2.179096671 | Q146: -0.4021395098 | R146: 0.5878525515 | Y146: 82.65203258 | Z146: 300.8286967 | AA146: 300.8286967 | AB146: 82.65203258
A147: 1.2 | B147: 294.9467289 | C147: 81.02398774 | D147: 210.7526349 | E147: 6.103120074 | F147: 1.07865542 | G147: 0.03288273023 | H147: 2.323773013 | I147: 0.7855519144 | J147: 0.004744899159 | K147: 0.0289586893 | L147: 0.03288273023 | M147: -2.323773013 | N147: -1.538221099 | O147: -5.88196775 | P147: -1.628044845 | Q147: 1.328350173 | R147: 0.5510518265 | Y147: 81.02398774 | Z147: 294.9467289 | AA147: 294.9467289 | AB147: 81.02398774
A148: 1.2083 | B148: 289.0373684 | C148: 79.77388336 | D148: 97.17822589 | E148: 6.040140933 | F148: 2.267630292 | G148: 0.3555722498 | H148: 1.987568966 | I148: 0.781047072 | J148: 0.01029037103 | K148: 0.06215529124 | L148: 0.3555722498 | M148: -1.987568966 | N148: -1.206521894 | O148: -5.909360502 | P148: -1.250104374 | Q148: -0.02739275151 | R148: 0.3779404713 | Y148: 79.77388336 | Z148: 289.0373684 | AA148: 289.0373684 | AB148: 79.77388336
A149: 1.2167 | B149: 282.2255856 | C149: 79.83174693 | D149: 35.68817084 | E149: 6.812028539 | F149: 8.857376123 | G149: 0.9473050871 | H149: 1.552524289 | I149: 0.8332764588 | J149: 0.02802048904 | K149: 0.190876371 | L149: 0.9473050871 | M149: -1.552524289 | N149: -0.7192478304 | O149: -6.811782779 | P149: 0.05786356729 | Q149: -0.9024222768 | R149: 1.307967941 | Y149: 79.83174693 | Z149: 282.2255856 | AA149: 282.2255856 | AB149: 79.83174693
A150: 1.225 | B150: 276.434512 | C150: 80.44988215 | D150: 50.97161793 | E150: 5.823969838 | F150: 3.875510629 | G150: 0.5883289323 | H150: 1.707328419 | I150: 0.7652191171 | J150: 0.0196187612 | K150: 0.1142590735 | L150: 0.5883289323 | M150: -1.707328419 | N150: -0.942109302 | O150: -5.791073608 | P150: 0.6181352141 | Q150: 1.020709171 | R150: 0.5602716468 | Y150: 80.44988215 | Z150: 276.434512 | AA150: 276.434512 | AB150: 80.44988215
A151: 1.2333 | B151: 270.6802379 | C151: 81.35573124 | D151: 117.03339 | E151: 5.825138094 | F151: 1.688919272 | G151: 0.2276088914 | H151: 2.068309785 | I151: 0.7653062255 | J151: 0.008544570058 | K151: 0.04977330055 | L151: 0.2276088914 | M151: -2.068309785 | N151: -1.30300356 | O151: -5.754274172 | P151: 0.905849092 | Q151: 0.03679943646 | R151: 0.2877138778 | Y151: 81.35573124 | Z151: 270.6802379 | AA151: 270.6802379 | AB151: 81.35573124
A152: 1.2417 | B152: 264.6092273 | C152: 82.87587486 | D152: 75.47341879 | E152: 6.258434744 | F152: 3.247903833 | G152: 0.5116031618 | H152: 1.877794023 | I152: 0.7964657283 | J152: 0.01324969792 | K152: 0.08292236982 | L152: 0.5116031618 | M152: -1.877794023 | N152: -1.081328295 | O152: -6.071010526 | P152: 1.520143626 | Q152: -0.3167363543 | R152: 0.6142945342 | Y152: 82.87587486 | Z152: 264.6092273 | AA152: 264.6092273 | AB152: 82.87587486
A153: 1.25 | B153: 259.4423896 | C153: 83.69498617 | D153: 49.68502936 | E153: 5.231362699 | F153: 2.88150212 | G153: 0.4596189434 | H153: 1.696225551 | I153: 0.7186148314 | J153: 0.02012678694 | K153: 0.1052905224 | L153: 0.4596189434 | M153: -1.696225551 | N153: -0.9776107194 | O153: -5.166837752 | P153: 0.8191113053 | Q153: 0.904172774 | R153: -0.7010323209 | Y153: 83.69498617 | Z153: 259.4423896 | AA153: 259.4423896 | AB153: 83.69498617
A154: 1.2583 | B154: 255.135574 | C154: 85.48348211 | D154: 17.75162034 | E154: 4.663408427 | F154: 5.713107007 | G154: 0.7568723585 | H154: 1.249238001 | I154: 0.6687034531 | J154: 0.05633288573 | K154: 0.262703254 | L154: 0.7568723585 | M154: -1.249238001 | N154: -0.5805345478 | O154: -4.306815579 | P154: 1.788495939 | Q154: 0.8600221731 | R154: 0.9693846338 | Y154: 85.48348211 | Z154: 255.135574 | AA154: 255.135574 | AB154: 85.48348211
A155: 1.2667 | B155: 250.747759 | C155: 87.02639191 | D155: 83.67248791 | E155: 4.651181667 | F155: 1.202561305 | G155: 0.0801072255 | H155: 1.922582682 | I155: 0.6675633026 | J155: 0.0119513597 | K155: 0.05558794514 | L155: 0.0801072255 | M155: -1.922582682 | N155: -1.25501938 | O155: -4.387814975 | P155: 1.542909799 | Q155: -0.08099939615 | R155: -0.2455861401 | Y155: 87.02639191 | Z155: 250.747759 | AA155: 250.747759 | AB155: 87.02639191
A156: 1.275 | B156: 245.9506135 | C156: 89.14219699 | D156: 76.57352338 | E156: 5.243017892 | F156: 1.88219835 | G156: 0.2746653884 | H156: 1.884078631 | I156: 0.7195813397 | J156: 0.01305934422 | K156: 0.0684703754 | L156: 0.2746653884 | M156: -1.884078631 | N156: -1.164497291 | O156: -4.797145553 | P156: 2.115805084 | Q156: -0.4093305782 | R156: 0.5728952849 | Y156: 89.14219699 | Z156: 245.9506135 | AA156: 245.9506135 | AB156: 89.14219699
A157: 1.2833 | B157: 242.3210799 | C157: 91.03206711 | D157: 49.41768777 | E157: 4.092080524 | F157: 1.386596477 | G157: 0.1419500923 | H157: 1.693882421 | I157: 0.6119441711 | J157: 0.02023566956 | K157: 0.08280598928 | L157: 0.1419500923 | M157: -1.693882421 | N157: -1.08193825 | O157: -3.629533569 | P157: 1.889870123 | Q157: 1.167611984 | R157: -0.2259349612 | Y157: 91.03206711 | Z157: 242.3210799 | AA157: 242.3210799 | AB157: 91.03206711
A158: 1.2917 | B158: 238.6087562 | C158: 92.36921904 | D158: 28.4075664 | E158: 3.94579811 | F158: 2.162571876 | G158: 0.3349705507 | H158: 1.453434031 | I158: 0.5961348604 | J158: 0.03520188902 | K158: 0.1388995472 | L158: 0.3349705507 | M158: -1.453434031 | N158: -0.8572991701 | O158: -3.712323725 | P158: 1.33715193 | Q158: -0.08279015543 | R158: -0.5527181926 | Y158: 92.36921904 | Z158: 238.6087562 | AA158: 238.6087562 | AB158: 92.36921904
A159: 1.3 | B159: 234.9225504 | C159: 93.44511484 | D159: 60.56351632 | E159: 3.840008425 | F159: 0.9349436776 | G159: -0.02921455087 | H159: 1.782211082 | I159: 0.5843321772 | J159: 0.01651159082 | K159: 0.06340464784 | L159: -0.02921455087 | M159: -1.782211082 | N159: -1.197878905 | O159: -3.686205765 | P159: 1.075895793 | Q159: 0.02611795947 | R159: -0.2612561375 | Y159: 93.44511484 | Z159: 234.9225504 | AA159: 234.9225504 | AB159: 93.44511484
A160: 1.3083 | B160: 231.2153598 | C160: 94.24798082 | D160: 53.03586384 | E160: 3.793132749 | F160: 1.029021572 | G160: 0.01242447925 | H160: 1.724569647 | I160: 0.5789980421 | J160: 0.01885516569 | K160: 0.07152014646 | L160: 0.01242447925 | M160: -1.724569647 | N160: -1.145571605 | O160: -3.707190616 | P160: 0.8028659827 | Q160: -0.02098485085 | R160: -0.2730298099 | Y160: 94.24798082 | Z160: 231.2153598 | AA160: 231.2153598 | AB160: 94.24798082
A161: 1.3167 | B161: 227.1745152 | C161: 95.87104668 | D161: 29.78109487 | E161: 4.354626055 | F161: 2.772757829 | G161: 0.4429119403 | H161: 1.47394066 | I161: 0.6389508668 | J161: 0.0335783491 | K161: 0.1462211539 | L161: 0.4429119403 | M161: -1.47394066 | N161: -0.8349897933 | O161: -4.040844627 | P161: 1.623065859 | Q161: -0.3336540105 | R161: 0.8201998762 | Y161: 95.87104668 | Z161: 227.1745152 | AA161: 227.1745152 | AB161: 95.87104668
A162: 1.325 | B162: 222.0134888 | C162: 97.00813148 | D162: 39.02800448 | E162: 5.284804157 | F162: 3.781902669 | G162: 0.5777103477 | H162: 1.591376346 | I162: 0.7230288979 | J162: 0.02562262697 | K162: 0.1354105655 | L162: 0.5777103477 | M162: -1.591376346 | N162: -0.8683474482 | O162: -5.161026364 | P162: 1.137084803 | Q162: -1.120181737 | R162: -0.4859810554 | Y162: 97.00813148 | Z162: 222.0134888 | AA162: 222.0134888 | AB162: 97.00813148
A163: 1.3333 | B163: 217.3659452 | C163: 97.92158538 | D163: 186.3223128 | E163: 4.736460679 | F163: 0.5702915572 | G163: -0.2439030578 | H163: 2.270264866 | I163: 0.6754539362 | J163: 0.005367043726 | K163: 0.02542079157 | L163: -0.2439030578 | M163: -2.270264866 | N163: -1.59481093 | O163: -4.647543623 | P163: 0.913453902 | Q163: 0.5134827402 | R163: -0.2236309014 | Y163: 97.92158538 | Z163: 217.3659452 | AA163: 217.3659452 | AB163: 97.92158538
A164: 1.3417 | B164: 211.8476605 | C164: 97.9301322 | D164: 33.60152708 | E164: 5.518291321 | F164: 5.000976994 | G164: 0.6990548567 | H164: 1.526359015 | I164: 0.7418046239 | J164: 0.02976055218 | K164: 0.1642273968 | L164: 0.6990548567 | M164: -1.526359015 | N164: -0.7845543912 | O164: -5.518284702 | P164: 0.008546815812 | Q164: -0.8707410784 | R164: -0.9049070862 | Y164: 97.9301322 | Z164: 211.8476605 | AA164: 211.8476605 | AB164: 97.9301322
A165: 1.35 | B165: 205.541846 | C165: 97.89413083 | D165: 992.8405155 | E165: 6.305917257 | F165: 0.2525604322 | G165: -0.5976346879 | H165: 2.996879491 | I165: 0.7997482678 | J165: 0.001007211112 | K165: 0.006351389935 | L165: -0.5976346879 | M165: -2.996879491 | N165: -2.197131224 | O165: -6.305814487 | P165: -0.03600136781 | Q165: -0.7875297855 | R165: -0.04454818363 | Y165: 97.89413083 | Z165: 205.541846 | AA165: 205.541846 | AB165: 97.89413083
A166: 1.3583 | B166: 198.6815624 | C166: 97.8732766 | D166: 2796.00441 | E166: 6.860315279 | F166: 0.1154767023 | G166: -0.937505627 | H166: 3.446537852 | I166: 0.836344075 | J166: 0.0003576532271 | K166: 0.002453613898 | L166: -0.937505627 | M166: -3.446537852 | N166: -2.610193777 | O166: -6.860283582 | P166: -0.02085422756 | Q166: -0.554469095 | R166: 0.01514714025 | Y166: 97.8732766 | Z166: 198.6815624 | AA166: 198.6815624 | AB166: 97.8732766
A167: 1.3667 | B167: 191.372299 | C167: 96.84092218 | D167: 58.04523315 | E167: 7.381807823 | F167: 6.929815052 | G167: 0.840721644 | H167: 1.76376656 | I167: 0.8681627347 | J167: 0.01722794355 | K167: 0.1271733685 | L167: 0.840721644 | M167: -1.76376656 | N167: -0.8956038253 | O167: -7.309263375 | P167: -1.032354422 | Q167: -0.4489797927 | R167: -1.011500195 | Y167: 96.84092218 | Z167: 191.372299 | AA167: 191.372299 | AB167: 96.84092218
A168: 1.375 | B168: 184.7269716 | C168: 94.47475166 | D168: 33.63815938 | E168: 7.054015857 | F168: 10.4346304 | G168: 1.018477071 | H168: 1.526832224 | I168: 0.8484364316 | J168: 0.02972814263 | K168: 0.2097027895 | L168: 1.018477071 | M168: -1.526832224 | N168: -0.6783957924 | O168: -6.645327437 | P168: -2.366170526 | Q168: 0.6639359379 | R168: -1.333816104 | Y168: 94.47475166 | Z168: 184.7269716 | AA168: 184.7269716 | AB168: 94.47475166
A169: 1.3833 | B169: 178.4851146 | C169: 91.99177888 | D169: 175.1358596 | E169: 6.717583852 | F169: 1.730869042 | G169: 0.2382642103 | H169: 2.243375078 | I169: 0.8272130962 | J169: 0.005709852925 | K169: 0.0383564158 | L169: 0.2382642103 | M169: -2.243375078 | N169: -1.416161982 | O169: -6.241857014 | P169: -2.48297278 | Q169: 0.4034704234 | R169: -0.1168022532 | Y169: 91.99177888 | Z169: 178.4851146 | AA169: 178.4851146 | AB169: 91.99177888
A170: 1.3917 | B170: 173.5976113 | C170: 88.69023826 | D170: 24.21837552 | E170: 5.898123357 | F170: 8.472206745 | G170: 0.9279965452 | H170: 1.384145009 | I170: 0.7707138514 | J170: 0.04129096103 | K170: 0.2435391817 | L170: 0.9279965452 | M170: -1.384145009 | N170: -0.6134311576 | O170: -4.887503319 | P170: -3.301540615 | Q170: 1.354353694 | R170: -0.8185678359 | Y170: 88.69023826 | Z170: 173.5976113 | AA170: 173.5976113 | AB170: 88.69023826
A171: 1.4 | B171: 168.9613345 | C171: 85.07521451 | D171: 86.04434352 | E171: 5.879069595 | F171: 2.361584439 | G171: 0.3732034785 | H171: 1.934722325 | I171: 0.7693086013 | J171: 0.01162191446 | K171: 0.06832604393 | L171: 0.3732034785 | M171: -1.934722325 | N171: -1.165413724 | O171: -4.6362768 | P171: -3.615023754 | Q171: 0.2512265194 | R171: -0.3134831388 | Y171: 85.07521451 | Z171: 168.9613345 | AA171: 168.9613345 | AB171: 85.07521451
A172: 1.4083 | B172: 166.1922701 | C172: 80.08114943 | D172: 14.16703008 | E172: 5.710376799 | F172: 13.14363476 | G172: 1.118715482 | H172: 1.151278816 | I172: 0.7566647661 | J172: 0.07058642454 | K172: 0.4030750811 | L172: 1.118715482 | M172: -1.151278816 | N172: -0.39461405 | O172: -2.769064319 | P172: -4.994065077 | Q172: 1.867212481 | R172: -1.379041322 | Y172: 80.08114943 | Z172: 166.1922701 | AA172: 166.1922701 | AB172: 80.08114943
A173: 1.4167 | B173: 164.1281055 | C173: 75.18788748 | D173: 46.21473936 | E173: 5.310818029 | F173: 3.241184509 | G173: 0.5107037546 | H173: 1.664780508 | I173: 0.7251614209 | J173: 0.02163811836 | K173: 0.1149161091 | L173: 0.5107037546 | M173: -1.664780508 | N173: -0.9396190872 | O173: -2.064164641 | P173: -4.893261945 | Q173: 0.7048996778 | R173: 0.1008031312 | Y173: 75.18788748 | Z173: 164.1281055 | AA173: 164.1281055 | AB173: 75.18788748
A174: 1.425 | B174: 163.2534662 | C174: 69.20019321 | D174: 27.42425453 | E174: 6.051237612 | F174: 8.079747494 | G174: 0.9073977885 | H174: 1.438134831 | I174: 0.7818442065 | J174: 0.0364640723 | K174: 0.2206527658 | L174: 0.9073977885 | M174: -1.438134831 | N174: -0.6562906245 | O174: -0.8746393209 | P174: -5.987694272 | Q174: 1.18952532 | R174: -1.094432326 | Y174: 69.20019321 | Z174: 163.2534662 | AA174: 163.2534662 | AB174: 69.20019321
A175: 1.4333 | B175: 162.3425247 | C175: 63.2129389 | D175: 1020.071991 | E175: 6.056156254 | F175: 0.2177511175 | G175: -0.6620396075 | H175: 3.008630823 | I175: 0.7821970718 | J175: 0.0009803229662 | K175: 0.005936989063 | L175: -0.6620396075 | M175: -3.008630823 | N175: -2.226433751 | O175: -0.9109414933 | P175: -5.98725431 | Q175: -0.0363021724 | R175: 0.0004399616826 | Y175: 63.2129389 | Z175: 162.3425247 | AA175: 162.3425247 | AB175: 63.2129389
A176: 1.4417 | B176: 161.8149489 | C176: 57.52600629 | D176: 92.14950596 | E176: 5.711351743 | F176: 2.02173259 | G176: 0.3057237119 | H176: 1.964493011 | I176: 0.7567389077 | J176: 0.01085193013 | K176: 0.06197919005 | L176: 0.3057237119 | M176: -1.964493011 | N176: -1.207754103 | O176: -0.5275757689 | P176: -5.686932612 | Q176: 0.3833657244 | R176: 0.3003216974 | Y176: 57.52600629 | Z176: 161.8149489 | AA176: 161.8149489 | AB176: 57.52600629
A177: 1.45 | B177: 162.0687545 | C177: 51.93764968 | D177: 39.86266297 | E177: 5.594117167 | F177: 4.391656533 | G177: 0.642628367 | H177: 1.600566308 | I177: 0.7477315583 | J177: 0.02508613137 | K177: 0.1403347581 | L177: 0.642628367 | M177: -1.600566308 | N177: -0.8528347495 | O177: 0.2538055389 | P177: -5.588356612 | Q177: 0.7813813078 | R177: 0.09857600034 | Y177: 51.93764968 | Z177: 162.0687545 | AA177: 162.0687545 | AB177: 51.93764968
A178: 1.4583 | B178: 162.7099048 | C178: 47.14725088 | D178: 47.69314426 | E178: 4.833114366 | F178: 2.367147177 | G178: 0.3742252609 | H178: 1.678455955 | I178: 0.684227072 | J178: 0.02096737415 | K178: 0.1013377172 | L178: 0.3742252609 | M178: -1.678455955 | N178: -0.9942288831 | O178: 0.641150373 | P178: -4.790398801 | Q178: 0.3873448341 | R178: 0.7979578107 | Y178: 47.14725088 | Z178: 162.7099048 | AA178: 162.7099048 | AB178: 47.14725088
A179: 1.4667 | B179: 163.7397957 | C179: 42.32069189 | D179: 65.3623377 | E179: 4.93521497 | F179: 1.839037764 | G179: 0.2645906473 | H179: 1.815327576 | I179: 0.6933060746 | J179: 0.0152993304 | K179: 0.07550548441 | L179: 0.2645906473 | M179: -1.815327576 | N179: -1.122021502 | O179: 1.029890843 | P179: -4.826558987 | Q179: 0.3887404696 | R179: -0.03616018527 | Y179: 42.32069189 | Z179: 163.7397957 | AA179: 163.7397957 | AB179: 42.32069189
A180: 1.475 | B180: 165.3609495 | C180: 36.41306412 | D180: 132.0966743 | E180: 6.126026903 | F180: 1.740382931 | G180: 0.2406448152 | H180: 2.120891884 | I180: 0.7871788997 | J180: 0.007570213293 | K180: 0.04637533029 | L180: 0.2406448152 | M180: -2.120891884 | N180: -1.333712984 | O180: 1.621153847 | P180: -5.907627766 | Q180: 0.5912630042 | R180: -1.081068779 | Y180: 36.41306412 | Z180: 165.3609495 | AA180: 165.3609495 | AB180: 36.41306412
A181: 1.4833 | B181: 167.3080754 | C181: 31.79802902 | D181: 31.25287339 | E181: 5.008976778 | F181: 4.021213226 | G181: 0.6043571024 | H181: 1.494889953 | I181: 0.6997490183 | J181: 0.03199705792 | K181: 0.1602725201 | L181: 0.6043571024 | M181: -1.494889953 | N181: -0.7951409343 | O181: 1.947125919 | P181: -4.615035105 | Q181: 0.3259720719 | R181: 1.29259266 | Y181: 31.79802902 | Z181: 167.3080754 | AA181: 167.3080754 | AB181: 31.79802902
A182: 1.4917 | B182: 169.5603205 | C182: 26.25184133 | D182: 529.7061307 | E182: 5.986050925 | F182: 0.4049358448 | G182: -0.3926137779 | H182: 2.724034999 | I182: 0.7771404072 | J182: 0.001887839204 | K182: 0.01130070161 | L182: -0.3926137779 | M182: -2.724034999 | N182: -1.946894592 | O182: 2.252245048 | P182: -5.546187693 | Q182: 0.3051191291 | R182: -0.9311525872 | Y182: 26.25184133 | Z182: 169.5603205 | AA182: 169.5603205 | AB182: 26.25184133
A183: 1.5 | B183: 171.3557067 | C183: 21.15781042 | D183: 103.9724546 | E183: 5.401163084 | F183: 1.515456849 | G183: 0.1805435749 | H183: 2.016918297 | I183: 0.7324872907 | J183: 0.009617932013 | K183: 0.05194801934 | L183: 0.1805435749 | M183: -2.016918297 | N183: -1.284431006 | O183: 1.795386236 | P183: -5.094030911 | Q183: -0.456858812 | R183: 0.4521567812 | Y183: 21.15781042 | Z183: 171.3557067 | AA183: 171.3557067 | AB183: 21.15781042
A184: 1.5083 | B184: 173.766694 | C184: 16.9024618 | D184: 25.20534332 | E184: 4.890894762 | F184: 4.641649439 | G184: 0.6666723373 | H184: 1.401492617 | I184: 0.6893883182 | J184: 0.03967412733 | K184: 0.1940419815 | L184: 0.6666723373 | M184: -1.401492617 | N184: -0.7121042991 | O184: 2.410987289 | P184: -4.255348619 | Q184: 0.6156010533 | R184: 0.8386822928 | Y184: 16.9024618 | Z184: 173.766694 | AA184: 173.766694 | AB184: 16.9024618
A185: 1.5167 | B185: 175.8968466 | C185: 13.07574474 | D185: 519.7697011 | E185: 4.379647654 | F185: 0.1616242632 | G185: -0.7914934418 | H185: 2.71581096 | I185: 0.6414391726 | J185: 0.001923928998 | K185: 0.008426131121 | L185: -0.7914934418 | M185: -2.71581096 | N185: -2.074371787 | O185: 2.130152602 | P185: -3.826717061 | Q185: -0.2808346875 | R185: 0.4286315572 | Y185: 13.07574474 | Z185: 175.8968466 | AA185: 175.8968466 | AB185: 13.07574474
A186: 1.525 | B186: 179.4715763 | C186: 8.66982196 | D186: 42.53214098 | E186: 5.673697893 | F186: 4.294191194 | G186: 0.632881377 | H186: 1.628717245 | I186: 0.7538662072 | J186: 0.0235116309 | K186: 0.1333978907 | L186: 0.632881377 | M186: -1.628717245 | N186: -0.8748510375 | O186: 3.57472968 | P186: -4.405922775 | Q186: 1.444577078 | R186: -0.5792057136 | Y186: 8.66982196 | Z186: 179.4715763 | AA186: 179.4715763 | AB186: 8.66982196
A187: 1.5333 | B187: 183.4339455 | C187: 4.878735439 | D187: 42.22315008 | E187: 5.483858773 | F187: 3.905783393 | G187: 0.5917081545 | H187: 1.625550631 | I187: 0.7390862618 | J187: 0.02368369006 | K187: 0.1298780115 | L187: 0.5917081545 | M187: -1.625550631 | N187: -0.8864643691 | O187: 3.962369245 | P187: -3.791086521 | Q187: 0.3876395652 | R187: 0.6148362536 | Y187: 4.878735439 | Z187: 183.4339455 | AA187: 183.4339455 | AB187: 4.878735439
A188: 1.5417 | B188: 188.0068497 | C188: 1.097891538 | D188: 88.69641137 | E188: 5.933484019 | F188: 2.35517554 | G188: 0.3720232822 | H188: 1.947906049 | I188: 0.773309777 | J188: 0.0112744133 | K188: 0.06689655114 | L188: 0.3720232822 | M188: -1.947906049 | N188: -1.174596272 | O188: 4.57290411 | P188: -3.780843901 | Q188: 0.6105348648 | R188: 0.01024262008 | Y188: 1.097891538 | Z188: 188.0068497 | AA188: 188.0068497 | AB188: 1.097891538
A189: 1.55 | B189: 190.5790118 | C189: -1.809555333 | D189: 16.38344351 | E189: 3.88191519 | F189: 3.57053209 | G189: 0.5527329407 | H189: 1.214405188 | I189: 0.5890460429 | J189: 0.06103722942 | K189: 0.236941348 | L189: 0.5527329407 | M189: -1.214405188 | N189: -0.6253591451 | O189: 2.57216217 | P189: -2.907446871 | Q189: -2.000741939 | R189: 0.8733970303 | Y189: -1.809555333 | Z189: 190.5790118 | AA189: 190.5790118 | AB189: -1.809555333
A190: 1.5583 | B190: 195.6877089 | C190: -4.424079786 | D190: 23.25295708 | E190: 5.738860815 | F190: 8.128284304 | G190: 0.9099988856 | H190: 1.36647819 | I190: 0.7588256919 | J190: 0.043005283 | K190: 0.2468013334 | L190: 0.9099988856 | M190: -1.36647819 | N190: -0.6076524982 | O190: 5.10869703 | P190: -2.614524452 | Q190: 2.536534859 | R190: 0.2929224188 | Y190: -4.424079786 | Z190: 195.6877089 | AA190: 195.6877089 | AB190: -4.424079786
A191: 1.5667 | B191: 200.6416781 | C191: -6.984783259 | D191: 1338.340018 | E191: 5.576648917 | F191: 0.1295846165 | G191: -0.8874465523 | H191: 3.126566464 | I191: 0.7463733039 | J191: 0.0007471942755 | K191: 0.004166840147 | L191: -0.8874465523 | M191: -3.126566464 | N191: -2.38019316 | O191: 4.953969202 | P191: -2.560703474 | Q191: -0.1547278274 | R191: 0.05382097824 | Y191: -6.984783259 | Z191: 200.6416781 | AA191: 200.6416781 | AB191: -6.984783259
A192: 1.575 | B192: 207.0563281 | C192: -8.764852316 | D192: 38.77914485 | E192: 6.657054995 | F192: 7.6076094 | G192: 0.8812482064 | H192: 1.588598228 | I192: 0.8232821447 | J192: 0.02578705652 | K192: 0.1716658534 | L192: 0.8812482064 | M192: -1.588598228 | N192: -0.7653160831 | O192: 6.414650057 | P192: -1.780069057 | Q192: 1.460680855 | R192: 0.780634417 | Y192: -8.764852316 | Z192: 207.0563281 | AA192: 207.0563281 | AB192: -8.764852316
A193: 1.5833 | B193: 214.5731116 | C193: -11.26837734 | D193: 185.6425417 | E193: 7.922731363 | F193: 2.678843148 | G193: 0.4279472855 | H193: 2.268677506 | I193: 0.8988749305 | J193: 0.005386696339 | K193: 0.04267734803 | L193: 0.4279472855 | M193: -2.268677506 | N193: -1.369802575 | O193: 7.516783535 | P193: -2.503525022 | Q193: 1.102133477 | R193: -0.723455965 | Y193: -11.26837734 | Z193: 214.5731116 | AA193: 214.5731116 | AB193: -11.26837734
A194: 1.5917 | B194: 224.2777197 | C194: -13.08777819 | D194: 90.64126841 | E194: 9.873684039 | F194: 10.61968665 | G194: 1.026111702 | H194: 1.957325974 | I194: 0.9944792255 | J194: 0.01103250228 | K194: 0.1089314416 | L194: 1.026111702 | M194: -1.957325974 | N194: -0.9628467488 | O194: 9.704608031 | P194: -1.819400854 | Q194: 2.187824496 | R194: 0.6841241676 | Y194: -13.08777819 | Z194: 224.2777197 | AA194: 224.2777197 | AB194: -13.08777819
A195: 1.6 | B195: 235.7459373 | C195: -14.92188569 | D195: 510.939727 | E195: 11.61395562 | F195: 3.065990573 | G195: 0.4865708152 | H195: 2.708369672 | I195: 1.064980162 | J195: 0.001957178014 | K195: 0.0227305786 | L195: 0.4865708152 | M195: -2.708369672 | N195: -1.643389509 | O195: 11.4682176 | P195: -1.834107495 | Q195: 1.763609569 | R195: -0.01470664067 | Y195: -14.92188569 | Z195: 235.7459373 | AA195: 235.7459373 | AB195: -14.92188569
A196: 1.6083 | B196: 244.5316603 | C196: -16.20111061 | D196: 484.8114116 | E196: 8.878363853 | F196: 1.443530566 | G196: 0.1594259841 | H196: 2.685572834 | I196: 0.9483329393 | J196: 0.002062657718 | K196: 0.01831302573 | L196: 0.1594259841 | M196: -2.685572834 | N196: -1.737239895 | O196: 8.785722981 | P196: -1.279224925 | Q196: -2.682494618 | R196: 0.5548825696 | Y196: =IF($A$1=0,0,C196) -> -16.20111061 | Z196: =IF($A$1=0,0,B196) -> 244.5316603 | AA196: =IF($A$1=0,0,B196) -> 244.5316603 | AB196: =IF($A$1=0,0,C196) -> -16.20111061
A197: 1.6167 | B197: 255.6781859 | C197: -17.30186057 | D197: 306.277105 | E197: 11.20074485 | F197: 4.588029264 | G197: 0.6616261793 | H197: 2.486114533 | I197: 1.049246904 | J197: =1/D197 -> 0.003265017149 | K197: =E197/D197 -> 0.03657062401 | L197: =LOG(F197) -> 0.6616261793 | M197: -2.486114533 | N197: -1.436867629 | O197: =(B197-B196) -> 11.14652568 | P197: =(C197-C196) -> -1.10074996 | Q197: 2.360802698 | R197: 0.1784749658 | Y197: -17.30186057 | Z197: 255.6781859 | AA197: 255.6781859 | AB197: -17.30186057
A198: 1.625 | B198: 265.0513156 | C198: -18.15973528 | D198: =((O198^2+P198^2)^(3/2))/F198 -> 1104.218709 | E198: =SQRT(O198^2+P198^2) -> 9.412306235 | F198: =ABS(O198*R198-Q198*P198) -> 0.7551496844 | G198: =LOG10(F198) -> -0.1219669548 | H198: =LOG10(D198) -> 3.043055101 | I198: 0.9736960488 | J198: 0.0009056176935 | K198: 0.008523951063 | L198: -0.1219669548 | M198: =LOG(J198) -> -3.043055101 | N198: -2.069359052 | O198: 9.373129661 | P198: -0.8578747035 | Q198: =(O198-O197) -> -1.773396017 | R198: 0.2428752561 | Y198: -18.15973528 | Z198: 265.0513156 | AA198: 265.0513156 | AB198: -18.15973528
A199: 1.6333 | B199: 273.6208189 | C199: -18.54539725 | D199: 168.9260931 | E199: 8.578177065 | F199: 3.736700426 | G199: 0.5724882815 | H199: 2.227696738 | I199: 0.9333950064 | J199: 0.005919748583 | K199: 0.05078065153 | L199: 0.5724882815 | M199: -2.227696738 | N199: -1.294301731 | O199: 8.569503288 | P199: -0.3856619718 | Q199: -0.8036263731 | R199: 0.4722127318 | Y199: -18.54539725 | Z199: 273.6208189 | AA199: 273.6208189 | AB199: -18.54539725
A200: 1.6417 | B200: 281.9986227 | C200: -19.02759383 | D200: 655.7392624 | E200: 8.391669139 | F200: 0.901184824 | G200: -0.04518613042 | H200: 2.816731188 | I200: 0.9238483525 | J200: 0.001524996378 | K200: 0.01279726504 | L200: -0.04518613042 | M200: -2.816731188 | N200: -1.892882835 | O200: 8.377803853 | P200: -0.4821965799 | Q200: -0.1916994354 | R200: -0.09653460813 | Y200: -19.02759383 | Z200: 281.9986227 | AA200: 281.9986227 | AB200: -19.02759383
... 803 more rows

Sheet Data
A1: Input Variable | C1: Output Variable | D1: oy | E1: Model Input Variable | G1: Model Output Variable
A2: qi.x | B2: qi.y | C2: ox | D2: oy | E2: qi.x | F2: qi.y | G2: ox | H2: oy
A3: 538.344721 | B3: -12.48902354 | C3: 152 | D3: -127 | E3: 783.4610498 | F3: 307.9718247 | G3: 397.1163288 | H3: 193.4608482
A4: 545.1563933 | B4: -11.97809855 | C4: 158 | D4: -127 | E4: 785.3095018 | F4: 307.9702835 | G4: 398.1531085 | H4: 192.948382
A5: 546.822398 | B5: -11.97813286 | C5: 159.6666667 | D5: -127 | E5: 787.1566044 | F5: 307.9524111 | G5: 399.1905246 | H5: 192.4196876
A6: 550.9174541 | B6: -11.63761341 | C6: 163.2222222 | D6: -127 | E6: 789.0020714 | F6: 307.9182069 | G6: 400.2285006 | H6: 191.8748158
A7: 553.7728366 | B7: -11.35396441 | C7: 165.6296296 | D7: -127 | E7: 790.8456173 | F7: 307.8676731 | G7: 401.2669596 | H7: 191.3138201
A8: 556.6904742 | B8: -10.30917339 | C8: 167.9506173 | D8: -126.3333333 | E8: 792.6869568 | F8: 307.8008145 | G8: 402.3058249 | H8: 190.7367569
A9: 559.5480323 | B9: -8.363061396 | C9: 170.1934156 | D9: -124.7777778 | E9: 794.5258054 | F9: 307.7176388 | G9: 403.3450193 | H9: 190.1436852
A10: 561.7386399 | B10: -5.529581731 | C10: 171.7146776 | D10: -122.3703704 | E10: 796.3618789 | F10: 307.6181562 | G10: 404.3844658 | H10: 189.5346666
A11: 565.0191597 | B11: 3.23332371 | C11: 174.3026978 | D11: -114.0493827 | E11: 798.1948939 | F11: 307.50238 | G11: 405.4240868 | H11: 188.9097658
A12: 567.1061874 | B12: 10.9350061 | C12: 175.6724585 | D12: -106.8065844 | E12: 800.0245675 | F12: 307.3703261 | G12: 406.4638049 | H12: 188.2690497
A13: 569.4908075 | B13: 23.25925146 | C13: 177.3250521 | D13: -94.95198903 | E13: 801.8506175 | F13: 307.222013 | G13: 407.5035422 | H13: 187.6125884
A14: 570.5755123 | B14: 38.77042178 | C14: 177.6658368 | D14: -79.91952446 | E14: 803.6727625 | F14: 307.0574622 | G14: 408.5432206 | H14: 186.9404544
A15: 571.6580932 | B15: 55.2178827 | C15: 177.996963 | D15: -63.95717116 | E15: 805.4907219 | F15: 306.8766979 | G15: 409.582762 | H15: 186.252723
A16: 571.9719111 | B16: 68.03952641 | C16: 177.5542666 | D16: -51.62556521 | E16: 807.3042157 | F16: 306.6797469 | G16: 410.6220878 | H16: 185.5494722
A17: 572.0272833 | B17: 80.29775518 | C17: 176.8504099 | D17: -39.86091212 | E17: 809.1129649 | F17: 306.4666389 | G17: 411.6611193 | H17: 184.8307825
A18: 571.4053695 | B18: 91.49265019 | C18: 175.4682255 | D18: -29.16215911 | E18: 810.9166913 | F18: 306.2374063 | G18: 412.6997774 | H18: 184.0967373
A19: 571.4699293 | B19: 99.47835565 | C19: 174.7728784 | D19: -21.67435708 | E19: 812.7151178 | F19: 305.9920841 | G19: 413.7379828 | H19: 183.3474225
A20: 571.2025369 | B20: 106.7062631 | C20: 173.7470346 | D20: -14.9455054 | E20: 814.5079681 | F20: 305.7307103 | G20: 414.775656 | H20: 182.5829268
A21: 570.3849053 | B21: 112.9448676 | C21: 172.1733044 | D21: -9.206620825 | E21: 816.294967 | F21: 305.4533254 | G21: 415.8127171 | H21: 181.8033415
A22: 568.9380655 | B22: 117.9341144 | C22: 169.9734463 | D22: -4.717375407 | E22: 818.0758402 | F22: 305.1599726 | G22: 416.8490859 | H22: 181.0087602
A23: 566.4295346 | B23: 122.5101335 | C23: 166.7155836 | D23: -0.6413320773 | E23: 819.8503147 | F23: 304.8506981 | G23: 417.8846818 | H23: 180.1992797
A24: 564.0220981 | B24: 126.1982665 | C24: 163.56301 | D24: 2.547097505 | E24: 821.6181184 | F24: 304.5255505 | G24: 418.9194241 | H24: 179.3749988
A25: 561.9591273 | B25: 129.4523206 | C25: 160.7595312 | D25: 5.301921809 | E25: 823.3789806 | F25: 304.1845811 | G25: 419.9532315 | H25: 178.5360194
A26: 560.0426116 | B26: 131.9319952 | C26: 158.1075137 | D26: 7.283006438 | E26: 825.1326317 | F26: 303.8278442 | G26: 420.9860225 | H26: 177.6824456
A27: 558.6209423 | B27: 134.341776 | C27: 155.9556816 | D27: 9.194976082 | E27: 826.8788034 | F27: 303.4553964 | G27: 422.0177152 | H27: 176.8143843
A28: 556.744185 | B28: 136.4697079 | C28: 153.3543984 | D28: 10.82599417 | E28: 828.6172284 | F28: 303.0672973 | G28: 423.0482274 | H28: 175.9319449
A29: 553.211764 | B29: 139.1466179 | C29: 149.10336 | D29: 13.00699009 | E29: 830.3476412 | F29: 302.6636089 | G29: 424.0774763 | H29: 175.0352391
A30: 549.973449 | B30: 141.2454467 | C30: 145.1525862 | D30: 14.61099475 | E30: 832.0697772 | F30: 302.244396 | G30: 425.1053791 | H30: 174.1243815
A31: 544.6122448 | B31: 143.0007672 | C31: 139.0853154 | D31: 15.87266161 | E31: 833.7833736 | F31: 301.809726 | G31: 426.1318523 | H31: 173.199489
A32: 538.9723502 | B32: 145.1150673 | C32: 132.7459672 | D32: 17.49455212 | E32: 835.4881687 | F32: 301.3596689 | G32: 427.156812 | H32: 172.2606809
A33: 531.5294412 | B33: 146.5673509 | C33: 124.6104275 | D33: 18.45573791 | E33: 837.1839025 | F33: 300.8942974 | G33: 428.180174 | H33: 171.3080791
A34: 523.723418 | B34: 147.918099 | C34: 116.1187982 | D34: 19.31676334 | E34: 838.8703164 | F34: 300.4136868 | G34: 429.2018536 | H34: 170.341808
A35: 512.5260823 | B35: 148.6804569 | C35: 104.2430753 | D35: 19.59083375 | E35: 840.5471534 | F35: 299.9179148 | G35: 430.2217658 | H35: 169.3619942
A36: 503.7412778 | B36: 149.545617 | C36: 94.78729116 | D36: 19.96919903 | E36: 842.214158 | F36: 299.407062 | G36: 431.239825 | H36: 168.3687671
A37: 495.2941638 | B37: 150.2483424 | C37: 85.67678881 | D37: 20.18667759 | E37: 843.8710765 | F37: 298.8812114 | G37: 432.2559452 | H37: 167.362258
A38: 488.4276861 | B38: 150.9306022 | C38: 78.15469332 | D38: 20.38529221 | E38: 845.5176566 | F38: 298.3404484 | G38: 433.27004 | H38: 166.3426011
A39: 482.5311584 | B39: 151.5512911 | C39: 71.61049404 | D39: 20.52398993 | E39: 847.1536479 | F39: 297.7848612 | G39: 434.2820225 | H39: 165.3099326
A40: 477.8152802 | B40: 152.1440142 | C40: 66.25506246 | D40: 20.63642738 | E40: 848.7788017 | F40: 297.2145404 | G40: 435.2918054 | H40: 164.2643911
A41: 473.8133363 | B41: 152.0395889 | C41: 61.62185217 | D41: 20.05347244 | E41: 850.392871 | F41: 296.6295792 | G41: 436.2993009 | H41: 163.2061177
A42: 470.1066022 | B42: 151.3594735 | C42: 57.29230487 | D42: 18.89663327 | E42: 851.9956106 | F42: 296.0300731 | G42: 437.3044205 | H42: 162.1352556
A43: 464.0665467 | B43: 148.9210774 | C43: 50.63805235 | D43: 15.98336857 | E43: 853.5867771 | F43: 295.4161203 | G43: 438.3070756 | H43: 161.0519504
A44: 457.6773671 | B44: 145.7040075 | C44: 43.64345241 | D44: 12.29333395 | E44: 855.1661291 | F44: 294.7878213 | G44: 439.3071768 | H44: 159.9563498
A45: 450.7242355 | B45: 142.3072533 | C45: 36.09383492 | D45: 8.425567506 | E45: 856.7334271 | F45: 294.1452791 | G45: 440.3046343 | H45: 158.848604
A46: 443.7968927 | B46: 138.2569983 | C46: 28.57909577 | D46: 3.906300485 | E46: 858.2884333 | F46: 293.4885991 | G46: 441.2993579 | H46: 157.7288651
A47: 436.3535945 | B47: 134.9282844 | C47: 20.55764356 | D47: 0.1106226636 | E47: 859.8309121 | F47: 292.8178892 | G47: 442.2912568 | H47: 156.5972876
A48: 430.7436258 | B48: 131.9548381 | C48: 14.37891311 | D48: -3.327692284 | E48: 861.3606298 | F48: 292.1332596 | G48: 443.2802396 | H48: 155.4540281
A49: 425.9027869 | B49: 129.0062333 | C49: 8.978852226 | D49: -6.739023207 | E49: 862.8773549 | F49: 291.4348228 | G49: 444.2662146 | H49: 154.2992453
A50: 421.9260603 | B50: 126.5168883 | C50: 4.452588446 | D50: -9.688905164 | E50: 864.3808576 | F50: 290.7226938 | G50: 445.2490893 | H50: 153.1331002
A51: 418.4903289 | B51: 122.8547853 | C51: 0.4771468907 | D51: -13.80930946 | E51: 865.8709106 | F51: 289.9969899 | G51: 446.228771 | H51: 151.9557557
A52: 415.8528371 | B52: 120.6207092 | C52: -2.690088221 | D52: -16.49940487 | E52: 867.3472884 | F52: 289.2578306 | G52: 447.2051663 | H52: 150.7673767
A53: 412.3249176 | B53: 117.8042339 | C53: -6.73764711 | D53: -19.76957144 | E53: 868.809768 | F53: 288.5053377 | G53: 448.1781812 | H53: 149.5681304
A54: 410.0960539 | B54: 115.2687975 | C54: -9.475911777 | D54: -22.75632544 | E54: 870.2581283 | F54: 287.7396354 | G54: 449.1477213 | H54: 148.3581859
A55: 406.9998102 | B55: 112.2987225 | C55: -13.0711863 | D55: -26.17529896 | E55: 871.6921506 | F55: 286.9608501 | G55: 450.1136917 | H55: 147.1377141
A56: 404.0438286 | B56: 109.9432474 | C56: -16.51569936 | D56: -28.97720813 | E56: 873.1116184 | F56: 286.1691104 | G56: 451.0759967 | H56: 145.9068882
A57: 400.8418052 | B57: 107.3135445 | C57: -20.19562855 | D57: -32.0508357 | E57: 874.5163173 | F57: 285.3645469 | G57: 452.0345404 | H57: 144.6658831
A58: 397.9341478 | B58: 104.796403 | C58: -23.57044264 | D58: -35.00934794 | E58: 875.9060356 | F58: 284.5472927 | G58: 452.9892262 | H58: 143.4148757
A59: 394.0388533 | B59: 101.8911286 | C59: -27.92202373 | D59: -38.35339455 | E59: 877.2805637 | F59: 283.7174829 | G59: 453.9399569 | H59: 142.1540447
A60: 390.5753535 | B60: 99.22640516 | C60: -31.83082212 | D60: -41.4542475 | E60: 878.6396943 | F60: 282.8752547 | G60: 454.8866349 | H60: 140.8835707
A61: 387.9227558 | B61: 97.51154832 | C61: -34.91761528 | D61: -43.60254735 | E61: 879.9832226 | F61: 282.0207474 | G61: 455.8291621 | H61: 139.6036362
A62: 385.3472053 | B62: 95.85921023 | C62: -37.9161458 | D62: -45.68559828 | E62: 881.3109463 | F62: 281.1541025 | G62: 456.7674396 | H62: 138.3144253
A63: 383.0637528 | B63: 94.21003264 | C63: -40.6112537 | D63: -47.76271521 | E63: 882.6226655 | F63: 280.2754635 | G63: 457.7013682 | H63: 137.0161241
A64: 380.5660976 | B64: 92.24843279 | C64: -43.50913317 | D64: -50.14943783 | E64: 883.9181828 | F64: 279.3849758 | G64: 458.6308481 | H64: 135.7089203
A65: 375.7571249 | B65: 89.84941638 | C65: -48.70679562 | D65: -52.97071768 | E65: 885.1973032 | F65: 278.482787 | G65: 459.555779 | H65: 134.3930033
A66: 370.7689989 | B66: 87.19944385 | C66: -54.07197626 | D66: -56.04005184 | E66: 886.4598343 | F66: 277.5690465 | G66: 460.47606 | H66: 133.0685641
A67: 364.6133735 | B67: 84.65232346 | C67: -60.59292396 | D67: -59.00358984 | E67: 887.7055864 | F67: 276.6439057 | G67: 461.3915898 | H67: 131.7357956
A68: 358.0048261 | B68: 81.38813112 | C68: -67.55496674 | D68: -62.68121389 | E68: 888.9343722 | F68: 275.7075181 | G68: 462.3022664 | H68: 130.394892
A69: 351.1854064 | B69: 79.25148134 | C69: -74.71596357 | D69: -65.22826791 | E69: 890.1460071 | F69: 274.7600388 | G69: 463.2079874 | H69: 129.0460494
A70: 345.8072973 | B70: 77.2505908 | C70: -80.42364344 | D70: -67.63649393 | E70: 891.3403092 | F70: 273.8016251 | G70: 464.1086498 | H70: 127.6894651
A71: 338.8352175 | B71: 75.6697232 | C71: -87.71320233 | D71: -69.62158728 | E71: 892.5170991 | F71: 272.8324357 | G71: 465.0041503 | H71: 126.3253382
A72: 332.8081101 | B72: 73.93969211 | C72: -94.04561526 | D72: -71.75269374 | E72: 893.6762002 | F72: 271.8526316 | G72: 465.8943848 | H72: 124.9538692
A73: 326.5605058 | B73: 72.96551017 | C73: -100.5862725 | D73: -73.12476034 | E73: 894.8174388 | F73: 270.8623752 | G73: 466.7792489 | H73: 123.57526
A74: 320.2168739 | B74: 71.85910641 | C74: -107.2106293 | D74: -74.62581803 | E74: 895.9406435 | F74: 269.8618308 | G74: 467.6586376 | H74: 122.1897138
A75: 314.0968601 | B75: 71.29278184 | C75: -113.5989673 | D75: -75.58352612 | E75: 897.045646 | F75: 268.8511645 | G75: 468.5324455 | H75: 120.7974356
A76: 307.3484827 | B76: 70.86126702 | C76: -120.6031988 | D76: -76.40311472 | E76: 898.1322808 | F76: 267.8305441 | G76: 469.4005667 | H76: 119.3986313
A77: 300.4609444 | B77: 70.65355978 | C77: -127.7340554 | D77: -76.99554695 | E77: 899.200385 | F77: 266.8001388 | G77: 470.2628947 | H77: 117.9935083
A78: 292.9799677 | B78: 70.56422372 | C78: -135.4457514 | D78: -77.46622055 | E78: 900.2497986 | F78: 265.7601198 | G78: 471.1193227 | H78: 116.5822754
A79: 284.2505111 | B79: 70.58776687 | C79: -144.3932689 | D79: -77.82058917 | E79: 901.2803646 | F79: 264.7106596 | G79: 471.9697433 | H79: 115.1651425
A80: 276.2361195 | B80: 70.68720078 | C80: -152.6130068 | D80: -78.09560324 | E80: 902.2919286 | F80: 263.6519324 | G80: 472.8140489 | H80: 113.7423207
A81: 269.3729463 | B81: 71.18168647 | C81: -159.6687586 | D81: -77.97206414 | E81: 903.2843394 | F81: 262.584114 | G81: 473.652131 | H81: 112.3140223
A82: 261.794211 | B82: 72.4986027 | C82: -167.4272551 | D82: -77.02255579 | E82: 904.2574485 | F82: 261.5073817 | G82: 474.4838812 | H82: 110.8804608
A83: 253.3563591 | B83: 75.22011747 | C83: -176.0320046 | D83: -74.66487331 | E83: 905.2111104 | F83: 260.4219141 | G83: 475.3091903 | H83: 109.4418509
A84: 246.7226013 | B84: 77.68273452 | C84: -182.8197532 | D84: -72.56247637 | E84: 906.1451826 | F84: 259.3278915 | G84: 476.1279489 | H84: 107.9984081
A85: 239.732813 | B85: 81.19266606 | C85: -189.9505859 | D85: -69.40911656 | E85: 907.0595255 | F85: 258.2254954 | G85: 476.9400469 | H85: 106.5503492
A86: 233.8880142 | B86: 84.9641392 | C86: -195.9234464 | D86: -65.99053098 | E86: 907.9540024 | F86: 257.1149088 | G86: 477.7453742 | H86: 105.0978918
A87: 227.9684956 | B87: 89.83728889 | C87: -201.9580108 | D87: -61.46654918 | E87: 908.82848 | F87: 255.996316 | G87: 478.5438202 | H87: 103.6412546
A88: 223.7346879 | B88: 94.83022453 | C88: -206.2938191 | D88: -56.81902672 | E88: 909.6828275 | F88: 254.8699027 | G88: 479.3352736 | H88: 102.1806572
A89: 219.7001592 | B89: 101.5623497 | C89: -210.4172766 | D89: -50.4285253 | E89: 910.5169175 | F89: 253.7358559 | G89: 480.1196233 | H89: 100.7163202
A90: 216.2895718 | B90: 107.579491 | C90: -213.9036986 | D90: -44.74918401 | E90: 911.3306256 | F90: 252.5943636 | G90: 480.8967575 | H90: 99.24846468
A91: 213.8156658 | B91: 115.2700477 | C91: -216.4403251 | D91: -37.39256977 | E91: 912.1238305 | F91: 251.4456152 | G91: 481.666564 | H91: 97.777313
A92: 211.8575736 | B92: 120.9454174 | C92: -218.4480079 | D92: -32.04725126 | E92: 912.8964138 | F92: 250.2898014 | G92: 482.4289306 | H92: 96.30308802
A93: 210.3792518 | B93: 127.5055218 | C93: -219.9627776 | D93: -25.81327368 | E93: 913.6482605 | F93: 249.1271138 | G93: 483.1837446 | H93: 94.82601345
A94: 209.5617303 | B94: 135.0207903 | C94: -220.8035952 | D94: -18.62017498 | E94: 914.3792585 | F94: 247.9577454 | G94: 483.930893 | H94: 93.34631367
A95: 209.4533395 | B95: 142.1479961 | C95: -220.9221243 | D95: -11.81114955 | E95: 915.0892989 | F95: 246.7818899 | G95: 484.6702626 | H95: 91.86421374
A96: 210.1305353 | B96: 148.4628631 | C96: -220.2419065 | D96: -5.81044151 | E96: 915.7782761 | F96: 245.5997424 | G96: 485.40174 | H96: 90.37993935
A97: 210.9682503 | B97: 154.7095471 | C97: -219.3880103 | D97: 0.1261363131 | E97: 916.4460875 | F97: 244.4114988 | G97: 486.1252114 | H97: 88.89371678
A98: 213.4502854 | B98: 161.9946645 | C98: -216.8766389 | D98: 7.105231601 | E98: 917.0926337 | F98: 243.2173562 | G98: 486.840563 | H98: 87.40577288
A99: 215.529558 | B99: 168.9351296 | C99: -214.7548831 | D99: 13.7437893 | E99: 917.7178187 | F99: 242.0175123 | G99: 487.5476805 | H99: 85.916335
A100: 218.3516477 | B100: 175.4387764 | C100: -211.877174 | D100: 19.94967364 | E100: 918.3215494 | F100: 240.8121659 | G100: 488.2464497 | H100: 84.42563097
A101: 224.9493953 | B101: 183.0138446 | C101: -205.2106857 | D101: 27.23115431 | E101: 918.9037361 | F101: 239.6015168 | G101: 488.9367561 | H101: 82.93388908
A102: 231.0489501 | B102: 189.7990161 | C102: -199.0292866 | D102: 33.72694265 | E102: 919.4642924 | F102: 238.3857654 | G102: 489.618485 | H102: 81.441338
A103: 237.9033196 | B103: 196.3432556 | C103: -192.0799907 | D103: 39.98603232 | E103: 920.003135 | F103: 237.165113 | G103: 490.2915217 | H103: 79.94820678
A104: 243.5055674 | B104: 201.5424362 | C104: -186.3697591 | D104: 44.90432499 | E104: 920.520184 | F104: 235.9397617 | G104: 490.9557514 | H104: 78.45472478
A105: 250.9377302 | B105: 207.2114948 | C105: -178.8165833 | D105: 50.29678577 | E105: 921.0153626 | F105: 234.7099142 | G105: 491.611059 | H105: 76.96112166
A106: 255.8915219 | B106: 211.2540259 | C106: -173.7287808 | D106: 54.06703692 | E106: 921.4885974 | F106: 233.475774 | G106: 492.2573295 | H106: 75.46762733
A107: 262.9582075 | B107: 215.9095314 | C107: -166.5151214 | D107: 58.45460756 | E107: 921.9398183 | F107: 232.2375453 | G107: 492.8944479 | H107: 73.9744719
A108: 267.565463 | B108: 219.2257015 | C108: -161.7479674 | D108: 61.50721483 | E108: 922.3689585 | F108: 230.9954328 | G108: 493.5222989 | H108: 72.48188564
A109: 273.3862858 | B109: 222.6315919 | C109: -155.7543629 | D109: 64.6539408 | E109: 922.7759544 | F109: 229.7496418 | G109: 494.1407676 | H109: 70.99009898
A110: 278.7875853 | B110: 225.6194431 | C110: -150.1674434 | D110: 67.38705188 | E110: 923.1607458 | F110: 228.5003782 | G110: 494.7497388 | H110: 69.49934242
A111: 284.4493498 | B111: 227.8296789 | C111: -144.3072688 | D111: 69.34699756 | E111: 923.5232758 | F111: 227.2478484 | G111: 495.3490974 | H111: 68.00984651
A112: 292.0538992 | B112: 229.6398465 | C112: -136.4915707 | D112: 70.91134981 | E112: 923.8634909 | F112: 225.9922592 | G112: 495.9387284 | H112: 66.52184184
A113: 301.7220244 | B113: 231.0559281 | C113: -126.5996132 | D113: 72.08611579 | E113: 924.1813409 | F113: 224.733818 | G113: 496.5185169 | H113: 65.03555895
A114: 313.3881181 | B114: 232.2057595 | C114: -114.6970613 | D114: 72.9991552 | E114: 924.4767789 | F114: 223.4727323 | G114: 497.088348 | H114: 63.55122833
A115: 323.4039322 | B115: 233.1339392 | C115: -104.4322248 | D115: 73.69509033 | E115: 924.7497613 | F115: 222.2092103 | G115: 497.6481071 | H115: 62.06908036
A116: 334.1982063 | B116: 233.8979379 | C116: -93.37642871 | D116: 74.23141518 | E116: 925.0002481 | F116: 220.9434604 | G116: 498.1976797 | H116: 60.58934529
A117: 343.0311299 | B117: 234.865105 | C117: -84.26955118 | D117: 74.97550184 | E117: 925.2282025 | F117: 219.6756912 | G117: 498.7369513 | H117: 59.11225317
A118: 350.4657064 | B118: 235.5103736 | C118: -76.54865996 | D118: 75.40230567 | E118: 925.4335909 | F118: 218.4061116 | G118: 499.2658078 | H118: 57.63803386
A119: 357.1096948 | B119: 235.7811641 | C119: -69.60607038 | D119: 75.45926917 | E119: 925.6163834 | F119: 217.1349307 | G119: 499.7841353 | H119: 56.16691693
A120: 363.0200448 | B120: 235.8182547 | C120: -63.38491011 | D120: 75.28719161 | E120: 925.7765533 | F120: 215.862358 | G120: 500.2918202 | H120: 54.69913167
A121: 368.0850227 | B121: 235.3177048 | C121: -57.9969935 | D121: 74.58215359 | E121: 925.9140773 | F121: 214.5886027 | G121: 500.7887489 | H121: 53.23490703
A122: 372.2863981 | B122: 234.2251208 | C122: -53.46063454 | D122: 73.28978174 | E122: 926.0289355 | F122: 213.3138746 | G122: 501.2748085 | H122: 51.77447159
A123: 375.9142153 | B123: 232.0877185 | C123: -49.48587601 | D123: 70.95731178 | E123: 926.1211114 | F123: 212.0383832 | G123: 501.7498862 | H123: 50.31805352
A124: 379.0591119 | B124: 228.0697657 | C124: -45.98217018 | D124: 66.74903117 | E124: 926.1905918 | F124: 210.7623382 | G124: 502.2138695 | H124: 48.86588053
A125: 381.1813492 | B125: 224.4084178 | C125: -43.48934873 | D125: 62.90211432 | E125: 926.237367 | F125: 209.4859492 | G125: 502.6666466 | H125: 47.41817984
A126: 382.7979287 | B126: 217.9041438 | C126: -41.4905063 | D126: 56.2170485 | E126: 926.2614306 | F126: 208.2094259 | G126: 503.1081058 | H126: 45.97517813
A127: 383.9013072 | B127: 212.5694793 | C127: -39.99328501 | D127: 50.7063876 | E127: 926.2627798 | F127: 206.9329778 | G127: 503.5381359 | H127: 44.53710155
A128: 384.3280081 | B128: 203.3420872 | C128: -39.16126377 | D128: 41.30781203 | E128: 926.2414148 | F128: 205.6568143 | G128: 503.9566264 | H128: 43.10417561
A129: 384.354396 | B129: 196.205362 | C129: -38.71818293 | D129: 34.00473321 | E129: 926.1973396 | F129: 204.3811446 | G129: 504.3634671 | H129: 41.67662518
A130: 383.3514724 | B130: 187.1329842 | C130: -39.2931489 | D130: 24.77084842 | E130: 926.1305614 | F130: 203.1061779 | G130: 504.7585482 | H130: 40.25467447
A131: 381.5350661 | B131: 177.4439741 | C131: -40.67044394 | D131: 14.92519388 | E131: 926.0410908 | F131: 201.8321231 | G131: 505.1417609 | H131: 38.83854695
A132: 378.4341613 | B132: 167.9025605 | C132: -43.32119761 | D132: 5.232014097 | E132: 925.9289417 | F132: 200.5591886 | G132: 505.5129965 | H132: 37.42846535
A133: 372.9637373 | B133: 157.2031553 | C133: -48.33054719 | D133: -5.614264009 | E133: 925.7941316 | F133: 199.2875829 | G133: 505.8721472 | H133: 36.02465158
A134: 369.2718247 | B134: 150.165301 | C134: -51.5505816 | D134: -12.7940833 | E134: 925.6366813 | F134: 198.0175139 | G134: 506.2191058 | H134: 34.62732674
A135: 364.7128037 | B135: 142.9603114 | C135: -55.62704293 | D135: -20.13611577 | E135: 925.4566149 | F135: 196.7491891 | G135: 506.5537658 | H135: 33.23671105
A136: 359.7875223 | B136: 134.9184681 | C136: -60.05920818 | D136: -28.31006636 | E136: 925.2539599 | F136: 195.4828158 | G136: 506.8760214 | H136: 31.85302384
A137: 354.4477686 | B137: 127.2069656 | C137: -64.89541703 | D137: -36.14872738 | E137: 925.0287473 | F137: 194.2186007 | G137: 507.1857674 | H137: 30.47648348
A138: 348.8444675 | B138: 119.6582922 | C138: -69.98487507 | D138: -43.81959791 | E138: 924.7810114 | F138: 192.9567502 | G138: 507.4828997 | H138: 29.10730736
A139: 343.6785704 | B139: 113.2723386 | C139: -74.62676404 | D139: -50.3227751 | E139: 924.5107897 | F139: 191.6974699 | G139: 507.7673146 | H139: 27.74571186
A140: 338.9007506 | B140: 106.6598945 | C140: -78.87054637 | D140: -57.04745767 | E140: 924.2181234 | F140: 190.4409651 | G140: 508.0389095 | H140: 26.39191231
A141: 333.0615984 | B141: 101.0245169 | C141: -84.16577013 | D141: -62.79007759 | E141: 923.9030568 | F141: 189.1874405 | G141: 508.2975827 | H141: 25.04612293
A142: 326.6615844 | B142: 95.97098485 | C142: -90.0121055 | D142: -67.94584509 | E142: 923.5656376 | F142: 187.9371 | G142: 508.5432332 | H142: 23.70855685
A143: 321.0511129 | B143: 91.43540757 | C143: -95.05929188 | D143: -72.57864089 | E143: 923.2059169 | F143: 186.690147 | G143: 508.7757611 | H143: 22.37942601
A144: 314.847193 | B144: 87.59807848 | C144: -100.6904658 | D144: -76.50816199 | E144: 922.823949 | F144: 185.4467842 | G144: 508.9950673 | H144: 21.05894116
A145: 308.0390146 | B145: 84.83112925 | C145: -106.9165859 | D145: -79.36226763 | E145: 922.4197919 | F145: 184.2072135 | G145: 509.201054 | H145: 19.74731182
A146: 300.8286967 | B146: 82.65203258 | C146: -113.5356839 | D146: -81.62347654 | E146: 921.9935064 | F146: 182.9716363 | G146: 509.393624 | H146: 18.44474624
A147: 294.9467289 | B147: 81.02398774 | C147: -118.8174233 | D147: -83.32858139 | E147: 921.545157 | F147: 181.7402528 | G147: 509.5726815 | H147: 17.15145138
A148: 289.0373684 | B148: 79.77388336 | C148: -124.1177024 | D148: -84.65068598 | E148: 921.0748114 | F148: 180.5132626 | G148: 509.7381317 | H148: 15.86763285
A149: 282.2255856 | B149: 79.83174693 | C149: -130.3117085 | D149: -84.65975579 | E149: 920.5825405 | F149: 179.2908646 | G149: 509.8898809 | H149: 14.59349489
A150: 276.434512 | B150: 80.44988215 | C150: -135.4764703 | D150: -84.10348059 | E150: 920.0684186 | F150: 178.0732565 | G150: 510.0278366 | H150: 13.32924033
A151: 270.6802379 | B151: 81.35573124 | C151: -140.5960596 | D151: -83.25441213 | E151: 919.5325233 | F151: 176.8606352 | G151: 510.1519074 | H151: 12.07507059
A152: 264.6092273 | B152: 82.87587486 | C152: -146.0241766 | D152: -81.78596424 | E152: 918.9749353 | F152: 175.6531968 | G152: 510.2620032 | H152: 10.83118558
A153: 259.4423896 | B153: 83.69498617 | C153: -150.5400788 | D153: -81.01345879 | E153: 918.3957388 | F153: 174.4511361 | G153: 510.3580352 | H153: 9.597783723
A154: 255.135574 | B154: 85.48348211 | C154: -154.1880851 | D154: -79.26647434 | E154: 917.7950209 | F154: 173.2546472 | G154: 510.4399159 | H154: 8.375061899
A155: 250.747759 | B155: 87.02639191 | C155: -157.909388 | D155: -77.75997771 | E155: 917.1728724 | F155: 172.0639229 | G155: 510.5075589 | H155: 7.163215416
A156: 245.9506135 | B156: 89.14219699 | C156: -162.032491 | D156: -75.67548402 | E156: 916.5293869 | F156: 170.8791549 | G156: 510.5608796 | H156: 5.96243798
A157: 242.3210799 | B157: 91.03206711 | C157: -164.9806263 | D157: -73.81182058 | E157: 915.8646615 | F157: 169.7005341 | G157: 510.5997943 | H157: 4.772921658
A158: 238.6087562 | B158: 92.36921904 | C158: -168.0043725 | D158: -72.4957682 | E158: 915.1787962 | F158: 168.5282499 | G158: 510.6242211 | H158: 3.59485685
A159: 234.9225504 | B159: 93.44511484 | C159: -170.9949996 | D159: -71.43586292 | E159: 914.4718945 | F159: 167.3624906 | G159: 510.6340794 | H159: 2.428432255
A160: 231.2153598 | B160: 94.24798082 | C160: -173.9997907 | D160: -70.64387704 | E160: 913.7440629 | F160: 166.2034434 | G160: 510.6292901 | H160: 1.273834841
A161: 227.1745152 | B161: 95.87104668 | C161: -177.3315968 | D161: -69.02657999 | E161: 912.995411 | F161: 165.0512942 | G161: 510.6097757 | H161: 0.1312498147
A162: 222.0134888 | B162: 97.00813148 | C162: -181.7771291 | D162: -67.89015234 | E162: 912.2260517 | F162: 163.9062275 | G162: 510.5754602 | H162: -0.9991394098
A163: 217.3659452 | B163: 97.92158538 | C163: -185.7029086 | D163: -66.97224411 | E163: 911.4361008 | F163: 162.7684267 | G163: 510.5262692 | H163: -2.117151242
A164: 211.8476605 | B164: 97.9301322 | C164: -190.4933459 | D164: -66.95413215 | E164: 910.6256775 | F164: 161.6380738 | G164: 510.46213 | H164: -3.222605943
A165: 205.541846 | B165: 97.89413083 | C165: -196.0654182 | D165: -66.97545875 | E165: 909.7949038 | F165: 160.5153493 | G165: 510.3829715 | H165: -4.315325658
A166: 198.6815624 | B166: 97.8732766 | C166: -202.1862547 | D166: -66.9765303 | E166: 908.943905 | F166: 159.4004323 | G166: 510.2887243 | H166: -5.395134442
A167: 191.372299 | B167: 96.84092218 | C167: -208.7505576 | D167: -67.98399635 | E167: 908.0728094 | F167: 158.2935008 | G167: 510.1793207 | H167: -6.461858291
A168: 184.7269716 | B168: 94.47475166 | C168: -214.6456041 | D168: -70.32017555 | E168: 907.1817482 | F168: 157.194731 | G168: 510.0546948 | H168: -7.515325171
A169: 178.4851146 | B169: 91.99177888 | C169: -220.1320539 | D169: -72.7680573 | E169: 906.2708558 | F169: 156.1042977 | G169: 509.9147827 | H169: -8.555365044
A170: 173.5976113 | B170: 88.69023826 | C170: -224.2592193 | D170: -76.02941095 | E170: 905.3402695 | F170: 155.0223744 | G170: 509.7595219 | H170: -9.581809895
A171: 168.9613345 | B171: 85.07521451 | C171: -228.1304244 | D171: -79.59915608 | E171: 904.3901296 | F171: 153.9491326 | G171: 509.5888521 | H171: -10.59449377
A172: 166.1922701 | B172: 80.08114943 | C172: -230.1298813 | D172: -84.54285568 | E172: 903.4205795 | F172: 152.8847427 | G172: 509.4027148 | H172: -11.59325277
A173: 164.1281055 | B173: 75.18788748 | C173: -231.4201019 | D173: -89.38067059 | E173: 902.4317654 | F173: 151.8293734 | G173: 509.2010535 | H173: -12.57792514
A174: 163.2534662 | B174: 69.20019321 | C174: -231.516661 | D174: -95.30784209 | E174: 901.4238363 | F174: 150.7831915 | G174: 508.9838134 | H174: -13.54835123
A175: 162.3425247 | B175: 63.2129389 | C175: -231.6455876 | D175: -101.2295042 | E175: 900.3969445 | F175: 149.7463625 | G175: 508.7509421 | H175: -14.50437354
A176: 161.8149489 | B176: 57.52600629 | C176: -231.3874162 | D176: -106.8457821 | E176: 899.3512449 | F176: 148.71905 | G176: 508.502389 | H176: -15.44583679
A177: 162.0687545 | B177: 51.93764968 | C177: -230.3443346 | D177: -112.3584288 | E177: 898.2868952 | F177: 147.701416 | G177: 508.2381054 | H177: -16.37258787
A178: 162.7099048 | B178: 47.14725088 | C178: -228.9105836 | D178: -117.0680703 | E178: 897.2040561 | F178: 146.6936207 | G178: 507.958045 | H178: -17.28447593
A179: 163.7397957 | B179: 42.32069189 | C179: -227.0849727 | D179: -121.808833 | E179: 896.1028912 | F179: 145.6958228 | G179: 507.6621635 | H179: -18.18135236
A180: 165.3609495 | B180: 36.41306412 | C180: -224.6651855 | D180: -127.6256344 | E180: 894.9835668 | F180: 144.7081788 | G180: 507.3504187 | H180: -19.06307083
A181: 167.3080754 | B181: 31.79802902 | C181: -221.9167194 | D181: -132.1448225 | E181: 893.8462518 | F181: 143.7308437 | G181: 507.0227706 | H181: -19.92948734
A182: 169.5603205 | B182: 26.25184133 | C182: -218.860635 | D182: -137.5901523 | E182: 892.6911181 | F182: 142.7639706 | G182: 506.6791816 | H182: -20.78046019
A183: 171.3557067 | B183: 21.15781042 | C183: -216.2591181 | D183: -142.5783249 | E183: 891.5183402 | F183: 141.8077109 | G183: 506.319616 | H183: -21.61585005
A184: 173.766694 | B184: 16.9024618 | C184: -213.0399177 | D184: -146.7228257 | E184: 890.3280955 | F184: 140.8622137 | G184: 505.9440407 | H184: -22.43551993
A185: 175.8968466 | B185: 13.07574474 | C185: -210.0996786 | D185: -150.4337169 | E185: 889.1205638 | F185: 139.9276267 | G185: 505.5524247 | H185: -23.23933528
A186: 179.4715763 | B186: 8.66982196 | C186: -205.7131988 | D186: -154.7188475 | E186: 887.8959277 | F186: 139.0040954 | G186: 505.1447394 | H186: -24.02716394
A187: 183.4339455 | B187: 4.878735439 | C187: -200.9376258 | D187: -158.3841881 | E187: 886.6543724 | F187: 138.0917634 | G187: 504.7209587 | H187: -24.79887618
A188: 188.0068497 | B188: 1.097891538 | C188: -195.5502749 | D188: -162.0343452 | E188: 885.3960859 | F188: 137.1907725 | G188: 504.2810587 | H188: -25.55434473
A189: 190.5790118 | B189: -1.809555333 | C189: -192.1626335 | D189: -164.8061778 | E189: 884.1212584 | F189: 136.3012622 | G189: 503.8250181 | H189: -26.29344482
A190: 195.6877089 | B190: -4.424079786 | C190: -186.2376361 | D190: -167.2801743 | E190: 882.8300829 | F190: 135.4233703 | G190: 503.3528178 | H190: -27.01605414
A191: 200.6416781 | B191: -6.984783259 | C191: -180.4667566 | D191: -169.6954507 | E191: 881.5227549 | F191: 134.5572324 | G191: 502.8644414 | H191: -27.72205293
A192: 207.0563281 | B192: -8.764852316 | C192: -173.2347976 | D192: -171.3252084 | E192: 880.1994725 | F192: 133.7029822 | G192: 502.359875 | H192: -28.41132393
A193: 214.5731116 | B193: -11.26837734 | C193: -164.900518 | D193: -173.673553 | E193: 878.8604359 | F193: 132.8607511 | G193: 501.8391072 | H193: -29.08375246
A194: 224.2777197 | B194: -13.08777819 | C194: -154.3784385 | D194: -175.3329205 | E194: 877.5058483 | F194: 132.0306687 | G194: 501.302129 | H194: -29.7392264
A195: 235.7459373 | B195: -14.92188569 | C195: -142.0929855 | D195: -177.0021578 | E195: 876.1359148 | F195: 131.2128623 | G195: 500.7489343 | H195: -30.3776362
A196: 244.5316603 | B196: -16.20111061 | C196: -132.4904747 | D196: -178.1116928 | E196: 874.7508432 | F196: 130.4074571 | G196: 500.1795194 | H196: -30.99887496
A197: 255.6781859 | B197: -17.30186057 | C197: -120.5278201 | D197: -179.0379502 | E197: 873.3508436 | F197: 129.6145762 | G197: 499.5938833 | H197: -31.60283834
A198: 265.0513156 | B198: -18.15973528 | C198: -110.3394316 | D198: -179.7165477 | E198: 871.9361283 | F198: 128.8343407 | G198: 498.9920277 | H198: -32.18942468
A199: 273.6208189 | B199: -18.54539725 | C199: -100.9557506 | D199: -179.9181659 | E199: 870.506912 | F199: 128.0668691 | G199: 498.3739569 | H199: -32.75853496
A200: 281.9986227 | B200: -19.02759383 | C200: -91.76506071 | D200: -180.2115712 | E200: 869.0634117 | F200: 127.3122782 | G200: 497.739678 | H200: -33.31007282
... 801 more rows

Sheet Display

Sheet Sheet3
